Body Name,Body,Service Level,Expense Type,Expense Code,Narrative,Date,Transaction Number,Amount,Capital and Revenue,Supplier Name,Supplier ID
South Ribble Council,http://statistics.data.gov.uk/doc/local-authority/30UN,Housing,Cap Grant- Improve Grants,C570,DFG works at ADDRESS REDACTED - Agreed to pay 50%,07/06/2017,0000432489,"1,300.00",Revenue,ABBI PROPERTY SERVICES LTD,131357
South Ribble Council,http://statistics.data.gov.uk/doc/local-authority/30UN,Area 3 - Parks/Leyland East West,Contract Hire & Lease Costs,3212,2 (6 YARD) SKIPS - TO BE DELIVERED TO WORDEN PARK DEPOT. TUESDAY 9TH MAY 2017,16/06/2017,0000432657,660.00,Revenue,ABLE SKIP HIRE LTD,00042495
South Ribble Council,http://statistics.data.gov.uk/doc/local-authority/30UN,Information Services,Peripherals,4247,"HP M552DN printer, as per quote",02/06/2017,0000432367,302.00,Revenue,ACS SYSTEMS UK LTD,00070166
South Ribble Council,http://statistics.data.gov.uk/doc/local-authority/30UN,Information Services,Peripherals,4247,freight,02/06/2017,0000432367,15.00,Revenue,ACS SYSTEMS UK LTD,00070166
South Ribble Council,http://statistics.data.gov.uk/doc/local-authority/30UN,Information Services,Capital Expenditure,C234,10 x Samsung Galaxy Tab S2 9.7 Book cover @ 106.00 each and 10 x Galaxy Tab S2 VE 9.7 wifi Black @ 362.00 each,02/06/2017,0000432381,"4,680.00",Revenue,ACS SYSTEMS UK LTD,00070166
South Ribble Council,http://statistics.data.gov.uk/doc/local-authority/30UN,Information Services,Capital Expenditure,C234,10 x Samsung Galaxy Tab S2 9.7 Book cover keyboard @ 106.00 each and 10 x Galaxy Tab S2 VE 9.7 wifi Black @ 362.00,02/06/2017,0000432382,"4,680.00",Revenue,ACS SYSTEMS UK LTD,00070166
South Ribble Council,http://statistics.data.gov.uk/doc/local-authority/30UN,Area 2 - Waste Transport/Eastern & Central Teams,External Contractors Charges,4570,SPEC REPAIR - JFC8648 - AE14AYF - PD,02/06/2017,0000432335,270.27,Revenue,AEBI SCHMIDT UK LTD,00085672
South Ribble Council,http://statistics.data.gov.uk/doc/local-authority/30UN,Revenues Plus,Financial,4811,post office trans,14/06/2017,0000432435,"1,107.00",Revenue,ALLPAY LTD,00122276
South Ribble Council,http://statistics.data.gov.uk/doc/local-authority/30UN,Revenues Plus,Financial,4811,paypost trans,14/06/2017,0000432435,188.40,Revenue,ALLPAY LTD,00122276
South Ribble Council,http://statistics.data.gov.uk/doc/local-authority/30UN,Revenues Plus,Financial,4811,webconnect,14/06/2017,0000432435,46.56,Revenue,ALLPAY LTD,00122276
South Ribble Council,http://statistics.data.gov.uk/doc/local-authority/30UN,Development Enterprise & Comm Mgnt,Other Misc,4851,Provide hot drinks to invited guests at the Truck Trail launch on Friday 28th April 2017.,16/06/2017,0000432433,250.00,Revenue,Andrew Greenwood,132248
South Ribble Council,http://statistics.data.gov.uk/doc/local-authority/30UN,Democratic Services,Other Misc,4970,Course Booking: BR - Boundary Review Venue: Preston 01/08/2017 Delegates: NAMES REDACTED,28/06/2017,0000432969,384.00,Revenue,ASSOC OF ELECTORAL ADMINISTRATORS LTD,00014449
South Ribble Council,http://statistics.data.gov.uk/doc/local-authority/30UN,Area 3 - Parks/Leyland East West,Materials General,4046,Plants for the Herbaceous Border on Worden Park as per attached list.,02/06/2017,0000432149,"2,120.40",Revenue,BANNISTER HALL LANDSCAPE SUPPLIES,00117786
South Ribble Council,http://statistics.data.gov.uk/doc/local-authority/30UN,Property Services,Rep & Maint Premises,2020,Works to Pavilions 1 -6 At Worden Park as per quote no SRBC 17 15/5/2017,28/06/2017,0000432850,814.39,Revenue,BELEC ELECTRICAL LTD,130290
South Ribble Council,http://statistics.data.gov.uk/doc/local-authority/30UN,Property Services,Rep & Maint Premises,2020,Civic Centre Shield Room Please replace lighting to Shield Room as discussed,28/06/2017,0000432851,963.40,Revenue,BELEC ELECTRICAL LTD,130290
South Ribble Council,http://statistics.data.gov.uk/doc/local-authority/30UN,Development Enterprise & Comm Mgnt,Other Misc,4851,6 x Children`s Bikes - 6 x 80 6 Helmets - 70 2 Track Pumps - 50,21/06/2017,0000432765,600.00,Revenue,BILL NICKSON CYCLES,00009496
South Ribble Council,http://statistics.data.gov.uk/doc/local-authority/30UN,Area 2 - Waste Transport/Eastern & Central Teams,External Contractors Charges,4570,OXYGEN AND ACETYLENE ANNUAL RENTAL,21/06/2017,0000432731,537.50,Revenue,BOC GASES,00015147
South Ribble Council,http://statistics.data.gov.uk/doc/local-authority/30UN,Area 3 - Parks/Leyland East West,Operational Furniture & Equip,4010,45m CLIMBING ROPE (LIME LITE + ONE EYE),16/06/2017,0000432434,160.00,Revenue,BUXTONS,00111261
South Ribble Council,http://statistics.data.gov.uk/doc/local-authority/30UN,Area 3 - Parks/Leyland East West,Operational Furniture & Equip,4010,SWNTO CLINOMETER,16/06/2017,0000432434,110.00,Revenue,BUXTONS,00111261
South Ribble Council,http://statistics.data.gov.uk/doc/local-authority/30UN,Neighbourhood Admin & Support,Operational Furniture & Equip,4010,WHEELBARROW 3 CU. FT. - 05150240,02/06/2017,0000432387,103.80,Revenue,C & W BERRY LTD,00015231
South Ribble Council,http://statistics.data.gov.uk/doc/local-authority/30UN,Neighbourhood Admin & Support,Materials General,4040,RED INSULATION TAPE - 04054481,02/06/2017,0000432387,4.48,Revenue,C & W BERRY LTD,00015231
South Ribble Council,http://statistics.data.gov.uk/doc/local-authority/30UN,Neighbourhood Admin & Support,Materials General,4040,Fast Set Post Mix - 02110336,02/06/2017,0000432387,469.20,Revenue,C & W BERRY LTD,00015231
South Ribble Council,http://statistics.data.gov.uk/doc/local-authority/30UN,Area 1 - Penwortham Western Parishes,External Contractors Charges,4570,Repairs to Spid No 0907-68373,23/06/2017,0000432670,334.00,Revenue,CA TRAFFIC LTD,00107602
South Ribble Council,http://statistics.data.gov.uk/doc/local-authority/30UN,Democratic Services,Balance Sheet,0030,ECU - SRBC fortefied deposits,28/06/2017,0000432915,"2,000.00",Revenue,"Cabinet Office, Elections Claims Unit",131856
South Ribble Council,http://statistics.data.gov.uk/doc/local-authority/30UN,HR & Communications,Recruitment Expenses,1500,Recruitment Expenses,07/06/2017,0000432355,"4,750.00",Revenue,CAPITA RESOURCING LTD,132257
South Ribble Council,http://statistics.data.gov.uk/doc/local-authority/30UN,HR & Communications,Recruitment Expenses,1500,Recruitment Expenses,07/06/2017,0000432356,"3,112.64",Revenue,CAPITA RESOURCING LTD,132257
South Ribble Council,http://statistics.data.gov.uk/doc/local-authority/30UN,Homelessness,Contributions,4730,"Block booking Flat 20 Cotswold House (May) 35.28 for 31 days, works out at 1093.68 + VAT",07/06/2017,0000432468,"1,093.68",Revenue,CHORLEY BOROUGH COUNCIL,00017352
South Ribble Council,http://statistics.data.gov.uk/doc/local-authority/30UN,Environmental Health,Other Misc,4851,Police and Crime Commissioner Funding Agreement Chorley & South Ribble CSP Funding - Chelsea`s Choice for SRBC,21/06/2017,0000432469,"4,190.00",Revenue,CHORLEY BOROUGH COUNCIL,00017352
South Ribble Council,http://statistics.data.gov.uk/doc/local-authority/30UN,HR & Communications,Training Expense-Course Fees,1402,X3 PLACES ON THE PA1 & PA6A HERBICIDE COURSE RAN AT CHORLEY BC 5TH - 7TH JUNE 2017 NAMES REDACTED,21/06/2017,0000432638,942.00,Revenue,CHORLEY BOROUGH COUNCIL,00017352
South Ribble Council,http://statistics.data.gov.uk/doc/local-authority/30UN,Democratic Services,Agency Fees,1121,For the secondment of NAME REDACTED to Democratic Services from 18th April to 18th August 2017 as agreed.,30/06/2017,0000432848,"12,865.00",Revenue,CHORLEY BOROUGH COUNCIL,00017352
South Ribble Council,http://statistics.data.gov.uk/doc/local-authority/30UN,Area 2 - Waste Transport/Eastern & Central Teams,External Contractors Charges,4570,Spec Repair - YP11CFM - JFC 8490,02/06/2017,0000432174,421.20,Revenue,CICELEY COMMERCIALS LTD,00059381
South Ribble Council,http://statistics.data.gov.uk/doc/local-authority/30UN,Area 2 - Waste Transport/Eastern & Central Teams,Materials General,4040,1 pump & 1 fan PJ62UCM JFC8756,21/06/2017,0000432353,"1,432.84",Revenue,CICELEY COMMERCIALS LTD,00059381
South Ribble Council,http://statistics.data.gov.uk/doc/local-authority/30UN,HR & Communications,Training Expense-Course Fees,1402,ONE PLACE FOR NAME REDACTED ONTO FACING UP TO ASSET CHALLENGE COURSE 15TH JUNE 2017 IN WIGAN,14/06/2017,0000432658,325.00,Revenue,CIPFA BUSINESS LTD,00017187
South Ribble Council,http://statistics.data.gov.uk/doc/local-authority/30UN,Property Services,Rep & Maint Premises,2020,"2017 / 2018 annual contract for the servicing of 5 water boilers at the Civic Centre , 1 boiler at Moss Side Depot & 1 boiler ",28/06/2017,0000432898,72.60,Revenue,COMMERCIAL KITCHEN SERVICES LTD,00019538
South Ribble Council,http://statistics.data.gov.uk/doc/local-authority/30UN,Property Services,Rep & Maint Premises,2020,"2017 / 2018 annual contract for the servicing of 5 water boilers at the Civic Centre , 1 boiler at Moss Side Depot & 1 boiler ",28/06/2017,0000432898,54.00,Revenue,COMMERCIAL KITCHEN SERVICES LTD,00019538
South Ribble Council,http://statistics.data.gov.uk/doc/local-authority/30UN,Property Services,Rep & Maint Premises,2020,"2017 / 2018 annual contract for the servicing of 5 water boilers at the Civic Centre , 1 boiler at Moss Side Depot & 1 boiler",28/06/2017,0000432898,190.00,Revenue,COMMERCIAL KITCHEN SERVICES LTD,00019538
South Ribble Council,http://statistics.data.gov.uk/doc/local-authority/30UN,HR & Communications,Balance Sheet,0030,CHILDCARE VOUCHERS - APRIL 2017,14/06/2017,0000431329,"3,102.83",Revenue,COMPUTERSHARE VOUCHER SERVICES,00116499
South Ribble Council,http://statistics.data.gov.uk/doc/local-authority/30UN,HR & Communications,Balance Sheet,0030,CHILDCARE VOUCHERS - JUNE 2017,14/06/2017,0000432579,"3,618.40",Revenue,COMPUTERSHARE VOUCHER SERVICES,00116499
South Ribble Council,http://statistics.data.gov.uk/doc/local-authority/30UN,Neighbourhood Admin & Support,Repair Costs,4050,1100LT BLACK PLASTIC LIDS -,16/06/2017,0000431955,112.00,Revenue,CONTAINER CARE SOLUTIONS,00106742
South Ribble Council,http://statistics.data.gov.uk/doc/local-authority/30UN,Neighbourhood Admin & Support,Repair Costs,4050,LID ASSEMBLY KITS (1100 litre ORANGE TRADE  BIN),16/06/2017,0000431955,150.00,Revenue,CONTAINER CARE SOLUTIONS,00106742
South Ribble Council,http://statistics.data.gov.uk/doc/local-authority/30UN,Neighbourhood Admin & Support,Repair Costs,4050,LOCK KITS,16/06/2017,0000431955,80.00,Revenue,CONTAINER CARE SOLUTIONS,00106742
South Ribble Council,http://statistics.data.gov.uk/doc/local-authority/30UN,Neighbourhood Admin & Support,Repair Costs,4050,WHEELS � BRAKED,16/06/2017,0000431955,116.00,Revenue,CONTAINER CARE SOLUTIONS,00106742
South Ribble Council,http://statistics.data.gov.uk/doc/local-authority/30UN,Neighbourhood Admin & Support,Repair Costs,4050,WHEELS - NORMAL,16/06/2017,0000431955,72.00,Revenue,CONTAINER CARE SOLUTIONS,00106742
South Ribble Council,http://statistics.data.gov.uk/doc/local-authority/30UN,Property Services,Other Misc,4421,To supply labour and transport to pick up  the ramp and staging from ADDRESS REDACTED on 3rd May 2017. Assemble ,28/06/2017,0000432962,590.36,Revenue,COOPER BESPOKE JOINERY LTD,00104456
South Ribble Council,http://statistics.data.gov.uk/doc/local-authority/30UN,Property Services,Other Misc,4421,To supply labour and transport to pick up  the ramp and staging from ADDRESS REDACTED on 7th June 2017. Assemble ,28/06/2017,0000432963,590.36,Revenue,COOPER BESPOKE JOINERY LTD,00104456
South Ribble Council,http://statistics.data.gov.uk/doc/local-authority/30UN,Revenues Plus,Postage,4291,Postage - June 2017,23/06/2017,0000432738,"1,017.15",Revenue,CRITIQOM,131053
South Ribble Council,http://statistics.data.gov.uk/doc/local-authority/30UN,Revenues Plus,Stationery,4130,Post stationery June 2017,23/06/2017,0000432800,341.26,Revenue,CRITIQOM,131053
South Ribble Council,http://statistics.data.gov.uk/doc/local-authority/30UN,Revenues Plus,Postage,4291,Postage - June 2017,23/06/2017,0000432801,841.61,Revenue,CRITIQOM,131053
South Ribble Council,http://statistics.data.gov.uk/doc/local-authority/30UN,Area 2 - Waste Transport/Eastern & Central Teams,External Contractors Charges,4570,"Spec repair, PE07HXT, JFC8559 (NAME REDACTEDl)",16/06/2017,0000432388,875.00,Revenue,DAVAND LTD (trading as Longton Coachcraft),131579
South Ribble Council,http://statistics.data.gov.uk/doc/local-authority/30UN,Area 2 - Waste Transport/Eastern & Central Teams,External Contractors Charges,4570,Spec repair welding - PJ07GNO - JFC8563 - PD,14/06/2017,0000432577,695.00,Revenue,DAVAND LTD (trading as Longton Coachcraft),131579
South Ribble Council,http://statistics.data.gov.uk/doc/local-authority/30UN,Development Enterprise & Comm Mgnt,Other Misc,4851,Provision of Cycle Training May 2017,14/06/2017,0000432494,360.00,Revenue,David Boyle,132006
South Ribble Council,http://statistics.data.gov.uk/doc/local-authority/30UN,Development Enterprise & Comm Mgnt,Other Misc,4851,Provision of Cycle Training May 2017,21/06/2017,0000432790,540.00,Revenue,David Boyle,132006
South Ribble Council,http://statistics.data.gov.uk/doc/local-authority/30UN,Area 2 - Waste Transport/Eastern & Central Teams,External Contractors Charges,4570,SPEC REPAIR - JFC8695 - NX58FJZ - PD,21/06/2017,0000432282,809.11,Revenue,DENNIS EAGLE LTD,00019774
South Ribble Council,http://statistics.data.gov.uk/doc/local-authority/30UN,Area 2 - Waste Transport/Eastern & Central Teams,External Contractors Charges,4570,Spec repair VN10DKL JFC8721,02/06/2017,0000432315,403.56,Revenue,DENNIS EAGLE LTD,00019774
South Ribble Council,http://statistics.data.gov.uk/doc/local-authority/30UN,Property Services,Rep & Maint Fixed Plant,2035,"2017 / 2018 contract for emergency lighting & fire alarm service at the Civic Centre, Leyland",30/06/2017,0000433020,730.00,Revenue,DES Electrical Services Ltd,131437
South Ribble Council,http://statistics.data.gov.uk/doc/local-authority/30UN,Property Services,Rep & Maint Fixed Plant,2035,2017 / 2018 contract for emergency lighting & fire alarm service at Leyland Market,30/06/2017,0000433020,250.00,Revenue,DES Electrical Services Ltd,131437
South Ribble Council,http://statistics.data.gov.uk/doc/local-authority/30UN,Property Services,Rep & Maint Fixed Plant,2035,2017 /  2018 contract for emergency lighting & fire alarm service at Moss Side Depot,30/06/2017,0000433020,620.00,Revenue,DES Electrical Services Ltd,131437
South Ribble Council,http://statistics.data.gov.uk/doc/local-authority/30UN,Property Services,Rep & Maint Fixed Plant,2035,2017 / 2018 contract for emergency lighting & fire alarm service at Leyland Museum,30/06/2017,0000433020,280.00,Revenue,DES Electrical Services Ltd,131437
South Ribble Council,http://statistics.data.gov.uk/doc/local-authority/30UN,Property Services,Rep & Maint Fixed Plant,2035,2017 / 2018 contract for emergency lighting & fire alarm service at Worden Arts & Craft Centre,30/06/2017,0000433020,467.50,Revenue,DES Electrical Services Ltd,131437
South Ribble Council,http://statistics.data.gov.uk/doc/local-authority/30UN,Property Services,Rep & Maint Fixed Plant,2035,"2017 / 2018 contract for emergency lighting & fire alarm service at CAB / Navy club, Towngate, Leyland",30/06/2017,0000433020,230.00,Revenue,DES Electrical Services Ltd,131437
South Ribble Council,http://statistics.data.gov.uk/doc/local-authority/30UN,Property Services,Rep & Maint Premises,2020,2017 / 2018 contract for emergency lighting & fire alarm service at Longton Brickcroft,30/06/2017,0000433020,82.50,Revenue,DES Electrical Services Ltd,131437
South Ribble Council,http://statistics.data.gov.uk/doc/local-authority/30UN,Property Services,Rep & Maint Premises,2020,2017 / 2018 contract for emergency lighting & fire alarm service at Kingsfold community centre,30/06/2017,0000433020,375.00,Revenue,DES Electrical Services Ltd,131437
South Ribble Council,http://statistics.data.gov.uk/doc/local-authority/30UN,Property Services,Rep & Maint Premises,2020,2017 / 2018 contract for emergency lighting & fire alarm service at Carr Street Community Centre,30/06/2017,0000433020,110.00,Revenue,DES Electrical Services Ltd,131437
South Ribble Council,http://statistics.data.gov.uk/doc/local-authority/30UN,Property Services,Rep & Maint Premises,2020,2017 / 2018 contract for emergency lighting & fire alarm service at Moss Side Community Centre,30/06/2017,0000433020,110.00,Revenue,DES Electrical Services Ltd,131437
South Ribble Council,http://statistics.data.gov.uk/doc/local-authority/30UN,Neighbourhood Admin & Support,Operational Furniture & Equip,4010,CHAINSAW CHAIN 30TH BAR - ST36210030072,02/06/2017,0000432406,146.59,Revenue,DICK LEIGH,00026534
South Ribble Council,http://statistics.data.gov.uk/doc/local-authority/30UN,Neighbourhood Admin & Support,Operational Furniture & Equip,4010,CHAINSAW CHAIN 12`` - ST36160030044,02/06/2017,0000432406,26.11,Revenue,DICK LEIGH,00026534
South Ribble Council,http://statistics.data.gov.uk/doc/local-authority/30UN,Neighbourhood Admin & Support,Operational Furniture & Equip,4010,CHAINSAW CHAIN 14``chain - ST36160030050,02/06/2017,0000432406,29.66,Revenue,DICK LEIGH,00026534
South Ribble Council,http://statistics.data.gov.uk/doc/local-authority/30UN,Neighbourhood Admin & Support,Operational Furniture & Equip,4010,CHAINSAW CHAIN 16`` - ST36390030067,02/06/2017,0000432406,40.70,Revenue,DICK LEIGH,00026534
South Ribble Council,http://statistics.data.gov.uk/doc/local-authority/30UN,Neighbourhood Admin & Support,Operational Furniture & Equip,4010,CHAINSAW CHAIN 30`` FOR STIHL 066 SAW - ST36210030098,02/06/2017,0000432406,67.02,Revenue,DICK LEIGH,00026534
South Ribble Council,http://statistics.data.gov.uk/doc/local-authority/30UN,Neighbourhood Admin & Support,Operational Furniture & Equip,4010,deliver charge,02/06/2017,0000432406,3.00,Revenue,DICK LEIGH,00026534
South Ribble Council,http://statistics.data.gov.uk/doc/local-authority/30UN,Neighbourhood Admin & Support,Operational Furniture & Equip,4010,CHAINSAW CHAIN (25� CHAIN),23/06/2017,0000432788,118.66,Revenue,DICK LEIGH,00026534
South Ribble Council,http://statistics.data.gov.uk/doc/local-authority/30UN,Neighbourhood Admin & Support,Operational Furniture & Equip,4010,CHAINSAW CHAIN 16`` - ST36390030067,23/06/2017,0000432788,63.41,Revenue,DICK LEIGH,00026534
South Ribble Council,http://statistics.data.gov.uk/doc/local-authority/30UN,Neighbourhood Admin & Support,Operational Furniture & Equip,4010,CHAINSAW CHAIN FOR 026 SAW 325/62E - ST36390030062,23/06/2017,0000432788,58.61,Revenue,DICK LEIGH,00026534
South Ribble Council,http://statistics.data.gov.uk/doc/local-authority/30UN,Neighbourhood Admin & Support,Operational Furniture & Equip,4010,CHAINSAW CHAIN 14``chain - ST36160030050,23/06/2017,0000432788,15.43,Revenue,DICK LEIGH,00026534
South Ribble Council,http://statistics.data.gov.uk/doc/local-authority/30UN,Neighbourhood Admin & Support,Operational Furniture & Equip,4010,delivery charge,23/06/2017,0000432788,3.00,Revenue,DICK LEIGH,00026534
South Ribble Council,http://statistics.data.gov.uk/doc/local-authority/30UN,Information Services,Processing-Internal,4212,"IT Health Check (Internal) (2 testers for 3.5 days on-site, 3 days reporting and analysis) week commencing 16/05/17",02/06/2017,0000432417,"7,500.00",Revenue,DIONACH LTD,00120359
South Ribble Council,http://statistics.data.gov.uk/doc/local-authority/30UN,Information Services,Processing-Internal,4212,As per proposal document - IT Health Check (External) 3 days,14/06/2017,0000432590,"1,153.45",Revenue,DIONACH LTD,00120359
South Ribble Council,http://statistics.data.gov.uk/doc/local-authority/30UN,Homelessness,Contributions,4730,Disc housing support services,16/06/2017,0000432699,"4,875.00",Revenue,Disc (Developing initiatives supporting communitie,132271
South Ribble Council,http://statistics.data.gov.uk/doc/local-authority/30UN,Development Enterprise & Comm Mgnt,Capital Expenditure,C230,Sand Slit Drainage Works completed at Gregson Lane Playing Fields (Interim Certificate No.3),16/06/2017,0000432389,"17,802.20",Revenue,DUNCAN ROSS LIMITED,130432
South Ribble Council,http://statistics.data.gov.uk/doc/local-authority/30UN,Neighbourhood Admin & Support,Materials General,4040,12000 Black Sacks 100g DEEPER BLACK WITH `KEEP SOUTH RIBBLE TIDY` 55.80 /1000 (boxed in 250),14/06/2017,0000432444,739.35,Revenue,Durasak Ltd,132141
South Ribble Council,http://statistics.data.gov.uk/doc/local-authority/30UN,Revenues Plus,Balance Sheet,0001,Balance Sheet,21/06/2017,0000432752,254.82,Revenue,DYLAN NAIR SOLICITORS LTD,00119331
South Ribble Council,http://statistics.data.gov.uk/doc/local-authority/30UN,Information Services,Peripherals,4260,Peripherals,07/06/2017,0000432530,"2,271.22",Revenue,EE Ltd,131653
South Ribble Council,http://statistics.data.gov.uk/doc/local-authority/30UN,Regeneration,Other Misc,4861,Love Leyland children`s art workshop at Leyland Festival,28/06/2017,0000432964,375.00,Revenue,"Elaine Lawrenson t/a ARTventurersPreston, Leyland",132268
South Ribble Council,http://statistics.data.gov.uk/doc/local-authority/30UN,Area 2 - Waste Transport/Eastern & Central Teams,Materials General,4040,2 SEAT BELTS - PE07HXT - JFC8559 - GA,02/06/2017,0000432261,314.57,Revenue,EVANSHALSHAW (PRESTON) LTD,00021076
South Ribble Council,http://statistics.data.gov.uk/doc/local-authority/30UN,Area 2 - Waste Transport/Eastern & Central Teams,Materials General,4040,1 x ADJUSTER - 1 x BELT - 1 x PUMP - PE07HXT - JFC8559,14/06/2017,0000432612,354.27,Revenue,EVANSHALSHAW (PRESTON) LTD,00021076
South Ribble Council,http://statistics.data.gov.uk/doc/local-authority/30UN,Development Enterprise & Comm Mgnt,Sports Dev Expenses,4894,Filming For Dance from the heart,28/06/2017,0000432965,725.00,Revenue,Everyonemedia Ltd,131539
South Ribble Council,http://statistics.data.gov.uk/doc/local-authority/30UN,Area 2 - Waste Transport/Eastern & Central Teams,External Contractors Charges,4570,SPEC REPAIR - JFC8683 - PO61MJJ - PD,21/06/2017,0000432694,"3,016.17",Revenue,F R SHARROCK LTD,00034539
South Ribble Council,http://statistics.data.gov.uk/doc/local-authority/30UN,Area 2 - Waste Transport/Eastern & Central Teams,Materials General,4040,1 PTO SHAFT - TMR03A2 - JFC8594 - BO,28/06/2017,0000432829,973.66,Revenue,F R SHARROCK LTD,00034539
South Ribble Council,http://statistics.data.gov.uk/doc/local-authority/30UN,Democratic Services,Operational Furniture & Equip,4010,Further to your email from NAME REDACTED re Q0063797: Q0063797  Past Mayor  9ct yellow & white gold and enamel,14/06/2017,0000432578,"2,279.72",Revenue,FATTORINI SALES & PRODUCTION,131045
South Ribble Council,http://statistics.data.gov.uk/doc/local-authority/30UN,Area 2 - Waste Transport/Eastern & Central Teams,External Contractors Charges,4570,ADDITIONAL CLINICAL WASTE - MAY 2017,14/06/2017,0000432572,397.32,Revenue,FCC Environment Services (UK) Ltd,131612
South Ribble Council,http://statistics.data.gov.uk/doc/local-authority/30UN,Area 2 - Waste Transport/Eastern & Central Teams,Balance Sheet,0030,clinical retention,14/06/2017,0000432572,-19.87,Revenue,FCC Environment Services (UK) Ltd,131612
South Ribble Council,http://statistics.data.gov.uk/doc/local-authority/30UN,Area 2 - Waste Transport/Eastern & Central Teams,External Contractors Charges,4570,RESIDUAL WASTE MAY 2017,14/06/2017,0000432619,"41,598.94",Revenue,FCC Environment Services (UK) Ltd,131612
South Ribble Council,http://statistics.data.gov.uk/doc/local-authority/30UN,Area 2 - Waste Transport/Eastern & Central Teams,External Contractors Charges,4570,DRY RECYCLABLE (NON TERRACED) MAY 2017,14/06/2017,0000432619,"42,600.51",Revenue,FCC Environment Services (UK) Ltd,131612
South Ribble Council,http://statistics.data.gov.uk/doc/local-authority/30UN,Area 2 - Waste Transport/Eastern & Central Teams,External Contractors Charges,4570,DRY RECYCLABLE (TERRACED) MAY 2017,14/06/2017,0000432619,"2,023.12",Revenue,FCC Environment Services (UK) Ltd,131612
South Ribble Council,http://statistics.data.gov.uk/doc/local-authority/30UN,Area 2 - Waste Transport/Eastern & Central Teams,External Contractors Charges,4570,ORGANIC WASTE (NON TERRACED) MAY 2017,14/06/2017,0000432619,"29,527.11",Revenue,FCC Environment Services (UK) Ltd,131612
South Ribble Council,http://statistics.data.gov.uk/doc/local-authority/30UN,Area 2 - Waste Transport/Eastern & Central Teams,External Contractors Charges,4570,SCHEDULE 2 PROPERTIES - MAY 2017,14/06/2017,0000432619,"1,689.25",Revenue,FCC Environment Services (UK) Ltd,131612
South Ribble Council,http://statistics.data.gov.uk/doc/local-authority/30UN,Area 2 - Waste Transport/Eastern & Central Teams,External Contractors Charges,4570,COMMERCIAL WASTE -  MAY 2017,14/06/2017,0000432619,"6,617.78",Revenue,FCC Environment Services (UK) Ltd,131612
South Ribble Council,http://statistics.data.gov.uk/doc/local-authority/30UN,Area 2 - Waste Transport/Eastern & Central Teams,External Contractors Charges,4570,BULKY WASTE - MAY 2017,14/06/2017,0000432619,914.85,Revenue,FCC Environment Services (UK) Ltd,131612
South Ribble Council,http://statistics.data.gov.uk/doc/local-authority/30UN,Area 2 - Waste Transport/Eastern & Central Teams,External Contractors Charges,4570,WEEE COLLECTIONS - MAY 2017,14/06/2017,0000432619,342.06,Revenue,FCC Environment Services (UK) Ltd,131612
South Ribble Council,http://statistics.data.gov.uk/doc/local-authority/30UN,Area 2 - Waste Transport/Eastern & Central Teams,External Contractors Charges,4570,CLINICAL WASTE COLLECTIONS - MAY 2017,14/06/2017,0000432619,582.54,Revenue,FCC Environment Services (UK) Ltd,131612
South Ribble Council,http://statistics.data.gov.uk/doc/local-authority/30UN,Area 2 - Waste Transport/Eastern & Central Teams,External Contractors Charges,4570,ADDITIONAL PROPERTIES - MAY 2017,14/06/2017,0000432619,"1,345.35",Revenue,FCC Environment Services (UK) Ltd,131612
South Ribble Council,http://statistics.data.gov.uk/doc/local-authority/30UN,Area 2 - Waste Transport/Eastern & Central Teams,External Contractors Charges,4570,REPLACEMENT BINS - MAY 2017,14/06/2017,0000432619,"5,000.00",Revenue,FCC Environment Services (UK) Ltd,131612
South Ribble Council,http://statistics.data.gov.uk/doc/local-authority/30UN,Area 2 - Waste Transport/Eastern & Central Teams,Balance Sheet,0030,retentionreuse,14/06/2017,0000432619,"-2,654.54",Revenue,FCC Environment Services (UK) Ltd,131612
South Ribble Council,http://statistics.data.gov.uk/doc/local-authority/30UN,Area 2 - Waste Transport/Eastern & Central Teams,Balance Sheet,0030,retention recycling,14/06/2017,0000432619,"-3,707.54",Revenue,FCC Environment Services (UK) Ltd,131612
South Ribble Council,http://statistics.data.gov.uk/doc/local-authority/30UN,Development Enterprise & Comm Mgnt,Other Misc,4851,Payment for Boogie Storm - School Tour 12/06 - 16/06,16/06/2017,0000432498,"1,750.00",Revenue,Fresh Artiste Management Ltd,132211
South Ribble Council,http://statistics.data.gov.uk/doc/local-authority/30UN,Regeneration,Other Misc,4851,Gator hire for Leyland festival   250 per vehicle - full hire 50 transport services  x2,28/06/2017,0000432877,600.00,Revenue,GATOR HIRE UK LTD,131217
South Ribble Council,http://statistics.data.gov.uk/doc/local-authority/30UN,Area 2 - Waste Transport/Eastern & Central Teams,Materials General,4040,1 X sole plate carrier - PO16HMV - JFC8703,02/06/2017,0000432366,469.04,Revenue,GIBSONS GARDEN MACHINERY LTD,00059051
South Ribble Council,http://statistics.data.gov.uk/doc/local-authority/30UN,Area 2 - Waste Transport/Eastern & Central Teams,Materials General,4040,1 bottom blade carrier PO16HMU JFC8723,02/06/2017,0000432391,469.04,Revenue,GIBSONS GARDEN MACHINERY LTD,00059051
South Ribble Council,http://statistics.data.gov.uk/doc/local-authority/30UN,Shared Financial Services,Financial,4816,Financial,14/06/2017,0000431269,637.93,Revenue,GLOBAL PAYMENTS (GPUK LLP),131178
South Ribble Council,http://statistics.data.gov.uk/doc/local-authority/30UN,Shared Financial Services,Financial,4816,Financial,14/06/2017,0000431269,7.00,Revenue,GLOBAL PAYMENTS (GPUK LLP),131178
South Ribble Council,http://statistics.data.gov.uk/doc/local-authority/30UN,Shared Financial Services,Financial,4816,Financial,14/06/2017,0000431270,"1,669.40",Revenue,GLOBAL PAYMENTS (GPUK LLP),131178
South Ribble Council,http://statistics.data.gov.uk/doc/local-authority/30UN,Shared Financial Services,Financial,4816,Financial,14/06/2017,0000431270,7.00,Revenue,GLOBAL PAYMENTS (GPUK LLP),131178
South Ribble Council,http://statistics.data.gov.uk/doc/local-authority/30UN,Shared Financial Services,Financial,4816,Financial,14/06/2017,0000431271,508.81,Revenue,GLOBAL PAYMENTS (GPUK LLP),131178
South Ribble Council,http://statistics.data.gov.uk/doc/local-authority/30UN,Shared Financial Services,Financial,4816,Financial,14/06/2017,0000431271,7.00,Revenue,GLOBAL PAYMENTS (GPUK LLP),131178
South Ribble Council,http://statistics.data.gov.uk/doc/local-authority/30UN,Shared Financial Services,Professional Fees,4512,Main Audit Fee for 2016/17,16/06/2017,0000432721,"10,981.00",Revenue,Grant Thornton UK LLP,130718
South Ribble Council,http://statistics.data.gov.uk/doc/local-authority/30UN,Area 2 - Waste Transport/Eastern & Central Teams,Materials General,4040,VARIOUS FILTERS,07/06/2017,0000432420,314.01,Revenue,H & J SERVICES LTD,00114446
South Ribble Council,http://statistics.data.gov.uk/doc/local-authority/30UN,Area 2 - Waste Transport/Eastern & Central Teams,Materials General,4040,"1 FAN BELT, 1 MIRROR, 1 CENTRE BEARING, 2 WIPERS, 1 DOOR HINGE, 1 CHECK BAR, 1 FLOOR MAT, 1 LINK BAR ",07/06/2017,0000432421,400.21,Revenue,H & J SERVICES LTD,00114446
South Ribble Council,http://statistics.data.gov.uk/doc/local-authority/30UN,Area 2 - Waste Transport/Eastern & Central Teams,Materials General,4040,4 set brake pads BIN539,14/06/2017,0000432611,340.00,Revenue,H & J SERVICES LTD,00114446
South Ribble Council,http://statistics.data.gov.uk/doc/local-authority/30UN,Area 2 - Waste Transport/Eastern & Central Teams,Materials General,4040,Various filters,30/06/2017,0000432988,433.46,Revenue,H & J SERVICES LTD,00114446
South Ribble Council,http://statistics.data.gov.uk/doc/local-authority/30UN,HR & Communications,Training Expense-Course Fees,1408,PHYSCHIATRIST SESSION FOR NAME REDACTED - APPROVED BY NAME REDACTED,23/06/2017,0000432763,250.00,Revenue,H M PSYCH LTD (THE THERAPY COMPANY),132276
South Ribble Council,http://statistics.data.gov.uk/doc/local-authority/30UN,Information Services,Peripherals,4248,Annual support & maintenance for Eros and annual support for VDF lic. with connectivity kit (10 users) for period /06/17 05/18,07/06/2017,0000432456,"6,617.17",Revenue,HALAROSE LTD,00024358
South Ribble Council,http://statistics.data.gov.uk/doc/local-authority/30UN,Democratic Services,Other Misc,4422,AVantGuard - AV2006  -  Cross Boundary support for import interface Eros - ER2013  -  Cross Boundary support for export,16/06/2017,0000432663,"1,000.00",Revenue,HALAROSE LTD,00024358
South Ribble Council,http://statistics.data.gov.uk/doc/local-authority/30UN,Area 2 - Waste Transport/Eastern & Central Teams,Vehicle Running Costs,3134,2500 LITRES GAS OIL (@46.58 pence per litre),02/06/2017,0000432372,"1,164.50",Revenue,Hall Fuels trading name of WFL (UK) Ltd,00116758
South Ribble Council,http://statistics.data.gov.uk/doc/local-authority/30UN,Area 2 - Waste Transport/Eastern & Central Teams,Vehicle Running Costs,3132,15000 LITRES DIESEL (@92.29 pence per litre),02/06/2017,0000432386,"13,843.50",Revenue,Hall Fuels trading name of WFL (UK) Ltd,00116758
South Ribble Council,http://statistics.data.gov.uk/doc/local-authority/30UN,Neighbourhood Admin & Support,Vehicle Running Costs,3134,"2,500 LITRES GAS OIL (@44.36 PENCE PER LITRE)",23/06/2017,0000432819,"1,109.19",Revenue,Hall Fuels trading name of WFL (UK) Ltd,00116758
South Ribble Council,http://statistics.data.gov.uk/doc/local-authority/30UN,Neighbourhood Admin & Support,Vehicle Running Costs,3132,"15,000 LITRES DIESEL (@90.07 PENCE PER LITRE)",23/06/2017,0000432846,"13,532.42",Revenue,Hall Fuels trading name of WFL (UK) Ltd,00116758
South Ribble Council,http://statistics.data.gov.uk/doc/local-authority/30UN,Property Services,Rep & Maint Premises,2025,"To recover the contents of 3 boxes of water damaged files and return to South Ribble Borough Council PR25 1DH, as per quote",23/06/2017,0000432650,885.00,Revenue,Harwell Technical Services Ltd,132159
South Ribble Council,http://statistics.data.gov.uk/doc/local-authority/30UN,Property Services,Agency Fees,1121,Staff fees for property maintenance officer from June 2017.,30/06/2017,0000433032,852.13,Revenue,Hays Specialist Recruitment Ltd,132288
South Ribble Council,http://statistics.data.gov.uk/doc/local-authority/30UN,Property Services,Agency Fees,1121,Staff fees for property maintenance officer from June 2017.,30/06/2017,0000433035,345.46,Revenue,Hays Specialist Recruitment Ltd,132288
South Ribble Council,http://statistics.data.gov.uk/doc/local-authority/30UN,Property Services,Agency Fees,1121,Staff fees for property maintenance officer from June 2017.,30/06/2017,0000433036,736.96,Revenue,Hays Specialist Recruitment Ltd,132288
South Ribble Council,http://statistics.data.gov.uk/doc/local-authority/30UN,Property Services,Agency Fees,1121,Staff fees for property maintenance officer from June 2017.,30/06/2017,0000433037,852.13,Revenue,Hays Specialist Recruitment Ltd,132288
South Ribble Council,http://statistics.data.gov.uk/doc/local-authority/30UN,Revenues Plus,Peripherals,4242,South Ribble Lalpac Data Migration - ref 130617,28/06/2017,0000432785,"1,900.00",Revenue,IDOX PLC,00104485
South Ribble Council,http://statistics.data.gov.uk/doc/local-authority/30UN,Revenues Plus,Professional Fees,4510,"Winery Lane, Walton-Le-Dale",16/06/2017,0000432706,"15,800.00",Revenue,Inform CPI Ltd,131666
South Ribble Council,http://statistics.data.gov.uk/doc/local-authority/30UN,Revenues Plus,Professional Fees,4510,"Wheelton Lane, Farington",16/06/2017,0000432707,"5,150.00",Revenue,Inform CPI Ltd,131666
South Ribble Council,http://statistics.data.gov.uk/doc/local-authority/30UN,Development Enterprise & Comm Mgnt,Other Misc,4851,Arena Sound systems for Leyland Festival on Saturday 17th June @ 800,23/06/2017,0000432784,700.00,Revenue,INTRAK,00048240
South Ribble Council,http://statistics.data.gov.uk/doc/local-authority/30UN,Information Services,Capital Expenditure,C234,2 x 10GBASE-SR SFP Module @ 427.07 each; 2 x LC-LC Fibre Patch OM3 1.5mtr. @ 3.15 each; delivery 25.00,21/06/2017,0000432673,885.44,Revenue,INTRINSIC TECHNOLOGY LTD,130439
South Ribble Council,http://statistics.data.gov.uk/doc/local-authority/30UN,Development Enterprise & Comm Mgnt,Sports Dev Expenses,4894,Mini Bus Transport for the Dance from the Heart Road Show Monday 12th - Friday 16th June 2017,23/06/2017,0000432811,700.00,Revenue,ISMAIL EBRAHIM ESAT,130499
South Ribble Council,http://statistics.data.gov.uk/doc/local-authority/30UN,Revenues Plus,Professional Fees,4525,vat on fees,14/06/2017,0000432517,0.00,Revenue,JACOBS,00049252
South Ribble Council,http://statistics.data.gov.uk/doc/local-authority/30UN,Revenues Plus,Professional Fees,4525,Council Tax Bailiffs fees and arrest warrants,14/06/2017,0000432517,310.00,Revenue,JACOBS,00049252
South Ribble Council,http://statistics.data.gov.uk/doc/local-authority/30UN,Development Enterprise & Comm Mgnt,Other Misc,4851,Tennis Coaching in various primary schools May 2017,14/06/2017,0000432515,437.50,Revenue,Jacqueline Lowe,132083
South Ribble Council,http://statistics.data.gov.uk/doc/local-authority/30UN,Property Services,Rep & Maint Premises,2020,Annual Contract for 2017 - 2018 for the maintenance of the Trend BMS HVAC 4 x day visits (TBA) at the Civic Centre Offices ,28/06/2017,0000432958,390.00,Revenue,JBC CONTROL SYSTEM,130816
South Ribble Council,http://statistics.data.gov.uk/doc/local-authority/30UN,HR & Communications,Agency Fees,1121,WORK CARRIED OUT BY NAME REDACTED FROM 1ST APRIL 2017 UNTIL END OF CONTRACT,28/06/2017,0000432919,"12,200.85",Revenue,Joanne Platt Associates Ltd,132222
South Ribble Council,http://statistics.data.gov.uk/doc/local-authority/30UN,Regeneration,Other Misc,4861,"Purchase of 7 Shields in Dark Oak - 12`` plus engraving at 60 per Shield. Each Shield to be engraved with a different  category:",14/06/2017,0000432514,350.00,Revenue,JOHN HARRISON SPORTS LTD,00023278
South Ribble Council,http://statistics.data.gov.uk/doc/local-authority/30UN,Regeneration,Capital Expenditure,C230,Extra Soil supplied and installed to accommodate larger Mulberry trees - 15.80m2 x 51 per m2,23/06/2017,0000432843,805.80,Revenue,John Wade Groundworks Ltd t/a Wade Group,131568
South Ribble Council,http://statistics.data.gov.uk/doc/local-authority/30UN,Planning,Advertising,4841,Press notices for planning applications 2017/18,16/06/2017,0000432674,810.00,Revenue,JOHNSTON PUBLISHING (NORTH WEST),00011345
South Ribble Council,http://statistics.data.gov.uk/doc/local-authority/30UN,Planning,Advertising,4841,Press notices for planning applications 2017/18,28/06/2017,0000432715,567.00,Revenue,JOHNSTON PUBLISHING (NORTH WEST),00011345
South Ribble Council,http://statistics.data.gov.uk/doc/local-authority/30UN,Legal,Other Misc,4851,Publication:  Lancashire Evening Post.  www.Preston Today Size:  28 x 1 cm columns Classification:  Public Notices Colour:,23/06/2017,0000432782,756.00,Revenue,JOHNSTON PUBLISHING (NORTH WEST),00011345
South Ribble Council,http://statistics.data.gov.uk/doc/local-authority/30UN,Planning,Advertising,4841,Press notices for planning applications 2017/18,28/06/2017,0000432783,513.00,Revenue,JOHNSTON PUBLISHING (NORTH WEST),00011345
South Ribble Council,http://statistics.data.gov.uk/doc/local-authority/30UN,Area 3 - Parks/Leyland East West,Materials General,4046,SUPPLY CARPET BED - LIONS DESIGN QUOTE Q39 DELIVERY TO WORDEN PARK LEYLAND PR25 1DJ WEEK 23/24 ,23/06/2017,0000432542,"2,580.00",Revenue,KERNOCK PARK PLANTS,00081304
South Ribble Council,http://statistics.data.gov.uk/doc/local-authority/30UN,Homelessness,Other Misc,4851,6 months Pre-tenancy training apr-sept 17/18,16/06/2017,0000432695,"2,500.00",Revenue,KEY UNLOCKING FUTURES LTD,00098601
South Ribble Council,http://statistics.data.gov.uk/doc/local-authority/30UN,Homelessness,Contributions,4730,KEY HOUSING ADVICE & MEDIATION  Q1 APR-JUN 2017/18 5000 Q2 JUL-SEPT 2017/18 5000,16/06/2017,0000432696,"10,000.00",Revenue,KEY UNLOCKING FUTURES LTD,00098601
South Ribble Council,http://statistics.data.gov.uk/doc/local-authority/30UN,Democratic Services,Balance Sheet,0030,SRBC returned parlimentary deposit,28/06/2017,0000432916,500.00,Revenue,Labour Party,132274
South Ribble Council,http://statistics.data.gov.uk/doc/local-authority/30UN,Healthy Communities,Sports Dev Expenses,4890,3 places on the LIRF training 100 x3 = 300,16/06/2017,0000432675,300.00,Revenue,LANCASHIRE SPORT PARTNERSHIP LTD,00120003
South Ribble Council,http://statistics.data.gov.uk/doc/local-authority/30UN,Area 2 - Waste Transport/Eastern & Central Teams,Waste Disposal Charges,5112,March 2017 - Incineration of Clinical Waste.,07/06/2017,0000432230,547.58,Revenue,LANCASHIRE TEACHING FT,00120715
South Ribble Council,http://statistics.data.gov.uk/doc/local-authority/30UN,Area 2 - Waste Transport/Eastern & Central Teams,Waste Disposal Charges,5112,April 2017 - Incineration of Clinical Waste,14/06/2017,0000432472,420.09,Revenue,LANCASHIRE TEACHING FT,00120715
South Ribble Council,http://statistics.data.gov.uk/doc/local-authority/30UN,Area 2 - Waste Transport/Eastern & Central Teams,External Contractors Charges,4570,Spec repair - VN10DKL - JFC8721 - PD,14/06/2017,0000432513,943.48,Revenue,Lancashire Waste Services Limited,131510
South Ribble Council,http://statistics.data.gov.uk/doc/local-authority/30UN,Area 1 - Penwortham Western Parishes,Professional Fees,4516,BACK OFFICE PROCESSING JANUARY  - MARCH 2017 (ESTIMATE),02/06/2017,0000432394,"1,200.00",Revenue,LANCS COUNTY COUNCIL,00041645
South Ribble Council,http://statistics.data.gov.uk/doc/local-authority/30UN,Area 1 - Penwortham Western Parishes,Professional Fees,4516,TEC RECHARGES JANUARY - MARCH 2017 (ESTIMATE),02/06/2017,0000432394,30.00,Revenue,LANCS COUNTY COUNCIL,00041645
South Ribble Council,http://statistics.data.gov.uk/doc/local-authority/30UN,Housing,Cap Grant- Improve Grants,C570,Supply and install stair lift at ADDRESS REDACTED as per your quote of - 6691.00,07/06/2017,0000432511,"6,691.00",Revenue,LANCS COUNTY COUNCIL,00041645
South Ribble Council,http://statistics.data.gov.uk/doc/local-authority/30UN,Area 2 - Waste Transport/Eastern & Central Teams,Contractors Charges 5,5412,"QUARTER 4 DISPOSAL FEE, LANDFILL TAX & 5% ADMIN FEE",14/06/2017,0000432512,"52,233.64",Revenue,LANCS COUNTY COUNCIL,00041645
South Ribble Council,http://statistics.data.gov.uk/doc/local-authority/30UN,Housing,Cap Grant- Improve Grants,C570,Supply and install stair lift at ADDRESS REDACTED as per your quote of 5904.00,09/06/2017,0000432586,"5,904.00",Revenue,LANCS COUNTY COUNCIL,00041645
South Ribble Council,http://statistics.data.gov.uk/doc/local-authority/30UN,Shared Assurance Services,Contractors Charges 5,5413,Provision of Internal Audit Services 45 Days @ 260 per day,14/06/2017,0000432644,"3,380.00",Revenue,LANCS COUNTY COUNCIL,00041645
South Ribble Council,http://statistics.data.gov.uk/doc/local-authority/30UN,Legal,Other Local Authorities,4530,LAND CHARGES - APRIL 2017,14/06/2017,0000432645,"1,178.00",Revenue,LANCS COUNTY COUNCIL,00041645
South Ribble Council,http://statistics.data.gov.uk/doc/local-authority/30UN,Information Services,Peripherals,4246,"100mb link between South Ribble and Chorley Borough Council, plus Engineer Resource Charge, for period 01/04/17 - 31/03/18",14/06/2017,0000432646,"4,550.00",Revenue,LANCS COUNTY COUNCIL,00041645
South Ribble Council,http://statistics.data.gov.uk/doc/local-authority/30UN,Information Services,Peripherals,4248,GIS Contract renewal for period 01/04/17 - 31/03/18 - Year 1 of 3 year Contract term,14/06/2017,0000432647,"7,578.00",Revenue,LANCS COUNTY COUNCIL,00041645
South Ribble Council,http://statistics.data.gov.uk/doc/local-authority/30UN,Legal,Other Local Authorities,4530,LAND CHARGES - MAY 2017,28/06/2017,0000432971,"1,286.50",Revenue,LANCS COUNTY COUNCIL,00041645
South Ribble Council,http://statistics.data.gov.uk/doc/local-authority/30UN,Regeneration,Capital Expenditure,C234,"Carry out works to create central garden at Withy Grove Road, Bamber Bridge. All as per the quotation submitted via The Chest",02/06/2017,0000432057,"16,006.10",Revenue,LANDSCAPE ENGINEERING LIMITED,130416
South Ribble Council,http://statistics.data.gov.uk/doc/local-authority/30UN,HR & Communications,Training Expense-Course Fees,1402,PSTAX EMPLOYMENT TAXES TRAINING COURSE NAME REDACTED 29TH JUNE 2017,28/06/2017,0000432920,250.00,Revenue,"LAVAT CONSULTING LTD, T/A PSTAX",132273
South Ribble Council,http://statistics.data.gov.uk/doc/local-authority/30UN,Area 3 - Parks/Leyland East West,Materials General,4040,150x Bags Westland Farm Yard Manure (50Ltrs) @ 2.85.,02/06/2017,0000432351,427.50,Revenue,LBS WORLDWIDE LTD,00026327
South Ribble Council,http://statistics.data.gov.uk/doc/local-authority/30UN,Planning,Printing,4125,Lease of printers 2017/18,14/06/2017,0000432649,"1,426.25",Revenue,LDF FINANCE No1 LTD,131373
South Ribble Council,http://statistics.data.gov.uk/doc/local-authority/30UN,Property Services,Advertising,4841,Please place advert in the Leyland Leader (July - Sept) as detailed in the e-mail to the market manager,21/06/2017,0000432733,350.00,Revenue,LEYLAND LEADER,00091297
South Ribble Council,http://statistics.data.gov.uk/doc/local-authority/30UN,Democratic Services,Other Misc,4421,Use of the venue for the Parliamentary Elections on Thursday 8 June 2017.  Access required from approx. 6.15am until 10.15pm,16/06/2017,0000432599,250.00,Revenue,LEYLAND MASONIC HALL ASSOC,00060189
South Ribble Council,http://statistics.data.gov.uk/doc/local-authority/30UN,Democratic Services,Other Misc,4421,Use of the venue for the Parliamentary Elections on Thursday 8 June 2017.  Access required from approx. 6.15am until 10.15pm,28/06/2017,0000432956,272.00,Revenue,LEYLAND METHODIST CHURCH,130071
South Ribble Council,http://statistics.data.gov.uk/doc/local-authority/30UN,Neighbourhood Admin & Support,Operational Furniture & Equip,4010,PADLOCKS � SQUIRE 660 T PASS KEY 9 -,16/06/2017,0000432709,177.48,Revenue,M A C BUILDING PRODUCTS LTD,00051059
South Ribble Council,http://statistics.data.gov.uk/doc/local-authority/30UN,Neighbourhood Admin & Support,Operational Furniture & Equip,4010,PADLOCKS  - SQUIRE 660 TO PASS KEY 3,16/06/2017,0000432709,177.48,Revenue,M A C BUILDING PRODUCTS LTD,00051059
South Ribble Council,http://statistics.data.gov.uk/doc/local-authority/30UN,Area 2 - Waste Transport/Eastern & Central Teams,Operational Furniture & Equip,4010,Manufacture - Ram Stop,07/06/2017,0000432349,400.00,Revenue,M WILSON COMMERCIALS LIMITED,130533
South Ribble Council,http://statistics.data.gov.uk/doc/local-authority/30UN,Area 2 - Waste Transport/Eastern & Central Teams,External Contractors Charges,4570,SPEC REPAIR - PJ62UCM - JFC8804,14/06/2017,0000432591,511.91,Revenue,M WILSON COMMERCIALS LIMITED,130533
South Ribble Council,http://statistics.data.gov.uk/doc/local-authority/30UN,Neighbourhood Admin & Support,Materials General,4040,ADDRESS REDACTED,16/06/2017,0000432667,45.00,Revenue,Main Street Signs Ltd,131922
South Ribble Council,http://statistics.data.gov.uk/doc/local-authority/30UN,Neighbourhood Admin & Support,Materials General,4040,ADDRESS REDACTED,16/06/2017,0000432667,45.00,Revenue,Main Street Signs Ltd,131922
South Ribble Council,http://statistics.data.gov.uk/doc/local-authority/30UN,Neighbourhood Admin & Support,Materials General,4040,ADDRESS REDACTED,16/06/2017,0000432667,38.00,Revenue,Main Street Signs Ltd,131922
South Ribble Council,http://statistics.data.gov.uk/doc/local-authority/30UN,Neighbourhood Admin & Support,Materials General,4040,ADDRESS REDACTED,16/06/2017,0000432667,47.00,Revenue,Main Street Signs Ltd,131922
South Ribble Council,http://statistics.data.gov.uk/doc/local-authority/30UN,Neighbourhood Admin & Support,Materials General,4040,ADDRESS REDACTED,16/06/2017,0000432667,42.00,Revenue,Main Street Signs Ltd,131922
South Ribble Council,http://statistics.data.gov.uk/doc/local-authority/30UN,Neighbourhood Admin & Support,Materials General,4040,ADDRESS REDACTED,16/06/2017,0000432667,11.00,Revenue,Main Street Signs Ltd,131922
South Ribble Council,http://statistics.data.gov.uk/doc/local-authority/30UN,Neighbourhood Admin & Support,Materials General,4040,ADDRESS REDACTED,16/06/2017,0000432667,55.00,Revenue,Main Street Signs Ltd,131922
South Ribble Council,http://statistics.data.gov.uk/doc/local-authority/30UN,Neighbourhood Admin & Support,Materials General,4040,ADDRESS REDACTED,16/06/2017,0000432667,43.00,Revenue,Main Street Signs Ltd,131922
South Ribble Council,http://statistics.data.gov.uk/doc/local-authority/30UN,Neighbourhood Admin & Support,Materials General,4040,ADDRESS REDACTED,16/06/2017,0000432667,59.00,Revenue,Main Street Signs Ltd,131922
South Ribble Council,http://statistics.data.gov.uk/doc/local-authority/30UN,Neighbourhood Admin & Support,Materials General,4040,ADDRESS REDACTED,16/06/2017,0000432667,90.00,Revenue,Main Street Signs Ltd,131922
South Ribble Council,http://statistics.data.gov.uk/doc/local-authority/30UN,Neighbourhood Admin & Support,Materials General,4040,ADDRESS REDACTED,16/06/2017,0000432667,45.00,Revenue,Main Street Signs Ltd,131922
South Ribble Council,http://statistics.data.gov.uk/doc/local-authority/30UN,Neighbourhood Admin & Support,Materials General,4040,DELIVERY CHARGE,16/06/2017,0000432667,37.00,Revenue,Main Street Signs Ltd,131922
South Ribble Council,http://statistics.data.gov.uk/doc/local-authority/30UN,Property Services,Rep & Maint Premises,2020,2017 / 2018 annual contract for gutter cleaning at Moss Side Depot,28/06/2017,0000432954,199.65,Revenue,MAINCOAT LTD,00099244
South Ribble Council,http://statistics.data.gov.uk/doc/local-authority/30UN,Property Services,Rep & Maint Premises,2020,2017 / 2018 annual contract for gutter cleaning at Leyland market,28/06/2017,0000432954,118.25,Revenue,MAINCOAT LTD,00099244
South Ribble Council,http://statistics.data.gov.uk/doc/local-authority/30UN,Property Services,Rep & Maint Premises,2020,2017 / 2018 annual contract for gutter cleaning at Bamber Bridge Community Centre,28/06/2017,0000432954,97.90,Revenue,MAINCOAT LTD,00099244
South Ribble Council,http://statistics.data.gov.uk/doc/local-authority/30UN,Property Services,Rep & Maint Premises,2020,2017 / 2018 annual contract for gutter cleaning at Higher Walton Community Centre,28/06/2017,0000432954,97.90,Revenue,MAINCOAT LTD,00099244
South Ribble Council,http://statistics.data.gov.uk/doc/local-authority/30UN,Property Services,Rep & Maint Premises,2020,2017 / 2018 annual contract for gutter cleaning at Moss Side Community Centre,28/06/2017,0000432954,97.90,Revenue,MAINCOAT LTD,00099244
South Ribble Council,http://statistics.data.gov.uk/doc/local-authority/30UN,Property Services,Rep & Maint Premises,2020,2017 / 2018 annual contract for gutter cleaning at Leyland Museum,28/06/2017,0000432954,97.90,Revenue,MAINCOAT LTD,00099244
South Ribble Council,http://statistics.data.gov.uk/doc/local-authority/30UN,Property Services,Rep & Maint Premises,2020,2017 / 2018 annual contract for gutter cleaning at Longton Brickcroft,28/06/2017,0000432954,118.25,Revenue,MAINCOAT LTD,00099244
South Ribble Council,http://statistics.data.gov.uk/doc/local-authority/30UN,Property Services,Rep & Maint Premises,2020,2017 / 2018 annual contract for gutter cleaning at Leyland Leisure Centre,28/06/2017,0000432954,199.65,Revenue,MAINCOAT LTD,00099244
South Ribble Council,http://statistics.data.gov.uk/doc/local-authority/30UN,Property Services,Rep & Maint Premises,2020,2017 / 2018 annual contract for gutter cleaning at Bamber Bridge Leisure Centre,28/06/2017,0000432954,199.65,Revenue,MAINCOAT LTD,00099244
South Ribble Council,http://statistics.data.gov.uk/doc/local-authority/30UN,Property Services,Rep & Maint Premises,2020,2017 / 2018 annual contract for gutter cleaning at Penwortham Leisure Centre,28/06/2017,0000432954,199.65,Revenue,MAINCOAT LTD,00099244
South Ribble Council,http://statistics.data.gov.uk/doc/local-authority/30UN,Property Services,Rep & Maint Premises,2020,2017 / 2018 annual contract for gutter cleaning at South Ribble Tennis Centre,28/06/2017,0000432954,199.65,Revenue,MAINCOAT LTD,00099244
South Ribble Council,http://statistics.data.gov.uk/doc/local-authority/30UN,Property Services,Rep & Maint Premises,2020,2017 / 2018 annual contract for gutter cleaning at the Civic Centre,28/06/2017,0000432954,97.90,Revenue,MAINCOAT LTD,00099244
South Ribble Council,http://statistics.data.gov.uk/doc/local-authority/30UN,Property Services,Rep & Maint Premises,2020,2017 / 2018 annual contract for gutter cleaning at Carr Street Community Centre,28/06/2017,0000432954,97.90,Revenue,MAINCOAT LTD,00099244
South Ribble Council,http://statistics.data.gov.uk/doc/local-authority/30UN,Property Services,Rep & Maint Premises,2020,2017 / 2018 annual contract for gutter cleaning at Holland House Farm,28/06/2017,0000432954,77.55,Revenue,MAINCOAT LTD,00099244
South Ribble Council,http://statistics.data.gov.uk/doc/local-authority/30UN,Property Services,Rep & Maint Premises,2020,2017 / 2018 annual contract for gutter cleaning at Crossroads & Playground toilets Worden Park and Withy Grove & Hope toilets,28/06/2017,0000432954,253.00,Revenue,MAINCOAT LTD,00099244
South Ribble Council,http://statistics.data.gov.uk/doc/local-authority/30UN,Property Services,Rep & Maint Premises,2020,2017 / 2018 annual contract for gutter cleaning at Gregson Lane Sports Pavilion,28/06/2017,0000432954,77.55,Revenue,MAINCOAT LTD,00099244
South Ribble Council,http://statistics.data.gov.uk/doc/local-authority/30UN,Property Services,Rep & Maint Premises,2020,2017 / 2018 annual contract for gutter cleaning at Hern Avenue & St Cuthbert`s Pavilions,28/06/2017,0000432954,77.55,Revenue,MAINCOAT LTD,00099244
South Ribble Council,http://statistics.data.gov.uk/doc/local-authority/30UN,Property Services,Rep & Maint Premises,2020,2017 / 2018 annual contract for gutter cleaning at Withy Grove & Holme Pavilions,28/06/2017,0000432954,77.55,Revenue,MAINCOAT LTD,00099244
South Ribble Council,http://statistics.data.gov.uk/doc/local-authority/30UN,Property Services,Rep & Maint Premises,2020,2017 / 2018 annual contract for gutter cleaning at Hurst Grange & Kingsfold Pavilions,28/06/2017,0000432954,77.55,Revenue,MAINCOAT LTD,00099244
South Ribble Council,http://statistics.data.gov.uk/doc/local-authority/30UN,Property Services,Rep & Maint Premises,2020,2017 / 2018 annual contract for gutter cleaning at Longton Pavilion,28/06/2017,0000432954,77.55,Revenue,MAINCOAT LTD,00099244
South Ribble Council,http://statistics.data.gov.uk/doc/local-authority/30UN,Property Services,Rep & Maint Premises,2020,2017 / 2018 annual contract for gutter cleaning at Hutton Pavilion,28/06/2017,0000432954,77.55,Revenue,MAINCOAT LTD,00099244
South Ribble Council,http://statistics.data.gov.uk/doc/local-authority/30UN,Property Services,Rep & Maint Premises,2020,2017 / 2018 annual contract for gutter cleaning at Much Hoole Pavilion,28/06/2017,0000432954,77.55,Revenue,MAINCOAT LTD,00099244
South Ribble Council,http://statistics.data.gov.uk/doc/local-authority/30UN,Property Services,Rep & Maint Premises,2020,2017 / 2018 annual contract for gutter cleaning at Worden park Pavilions,28/06/2017,0000432954,77.55,Revenue,MAINCOAT LTD,00099244
South Ribble Council,http://statistics.data.gov.uk/doc/local-authority/30UN,Property Services,Rep & Maint Premises,2020,2017 / 2018 annual contract for gutter cleaning at Moss Side Pavilion,28/06/2017,0000432954,78.65,Revenue,MAINCOAT LTD,00099244
South Ribble Council,http://statistics.data.gov.uk/doc/local-authority/30UN,Property Services,Rep & Maint Premises,2020,2017 / 2018 annual contract for gutter cleaning at Penwortham Holme,28/06/2017,0000432954,77.55,Revenue,MAINCOAT LTD,00099244
South Ribble Council,http://statistics.data.gov.uk/doc/local-authority/30UN,Property Services,Rep & Maint Premises,2020,"2017 / 2018 annual contract for gutter cleaning at Worden Arts centre, Coffee shop (now the Folly) Derby Wing, Bungalow Bothy",28/06/2017,0000432954,317.90,Revenue,MAINCOAT LTD,00099244
South Ribble Council,http://statistics.data.gov.uk/doc/local-authority/30UN,Development Enterprise & Comm Mgnt,Other Misc,4851,Costs to supply and erect crowd control barriers on Worden park for Leyland festival. Deliver and erect the barriers an Friday,23/06/2017,0000432780,950.00,Revenue,MDS Scaffolding Limited,131533
South Ribble Council,http://statistics.data.gov.uk/doc/local-authority/30UN,Revenues Plus,Agency Fees,1121,Agency Staff - May 2017,02/06/2017,0000432373,901.25,Revenue,MORGAN HUNT PUBLIC SECTOR LTD,00120401
South Ribble Council,http://statistics.data.gov.uk/doc/local-authority/30UN,Revenues Plus,Agency Fees,1121,Agency Staff - May 2017,14/06/2017,0000432643,778.68,Revenue,MORGAN HUNT PUBLIC SECTOR LTD,00120401
South Ribble Council,http://statistics.data.gov.uk/doc/local-authority/30UN,Revenues Plus,Agency Fees,1121,Agency Staff - June 2017,21/06/2017,0000432736,804.69,Revenue,MORGAN HUNT PUBLIC SECTOR LTD,00120401
South Ribble Council,http://statistics.data.gov.uk/doc/local-authority/30UN,Area 1 - Penwortham Western Parishes,Professional Fees,4521,PROVISION OF STRAY DOG SERVICE - TO COVER MAY 2017,21/06/2017,0000432524,292.58,Revenue,MORNINGSIDE KENNELS,00067755
South Ribble Council,http://statistics.data.gov.uk/doc/local-authority/30UN,Development Enterprise & Comm Mgnt,Legal,4821,Professional Fees in respect of Planning Inquiry ref 378838 Cuerden Development,21/06/2017,0000432425,675.00,Revenue,MR IAN PONTER,131194
South Ribble Council,http://statistics.data.gov.uk/doc/local-authority/30UN,Area 2 - Waste Transport/Eastern & Central Teams,External Contractors Charges,4570,LOLER INSPECTION (X2) - JFC8101 - MX04YNL - PD,02/06/2017,0000432258,111.00,Revenue,MUNICIPAL VEHICLE INSPECTION SERVICES LT,00096645
South Ribble Council,http://statistics.data.gov.uk/doc/local-authority/30UN,Area 2 - Waste Transport/Eastern & Central Teams,External Contractors Charges,4570,LOLER INSPECTION - JFC8102 - YP11CFM - PF,02/06/2017,0000432258,55.50,Revenue,MUNICIPAL VEHICLE INSPECTION SERVICES LT,00096645
South Ribble Council,http://statistics.data.gov.uk/doc/local-authority/30UN,Area 2 - Waste Transport/Eastern & Central Teams,External Contractors Charges,4570,LOLER INSPECTION - JFC8103 - PJ62UCH - PD,02/06/2017,0000432258,55.50,Revenue,MUNICIPAL VEHICLE INSPECTION SERVICES LT,00096645
South Ribble Council,http://statistics.data.gov.uk/doc/local-authority/30UN,Area 2 - Waste Transport/Eastern & Central Teams,External Contractors Charges,4570,LOLER INSPECTION - JFC8104 - PJ62UCG - PD,02/06/2017,0000432258,55.50,Revenue,MUNICIPAL VEHICLE INSPECTION SERVICES LT,00096645
South Ribble Council,http://statistics.data.gov.uk/doc/local-authority/30UN,Area 2 - Waste Transport/Eastern & Central Teams,External Contractors Charges,4570,LOLER INSPECTION - JFC8105 - PJ62UCL - PD,02/06/2017,0000432258,55.50,Revenue,MUNICIPAL VEHICLE INSPECTION SERVICES LT,00096645
South Ribble Council,http://statistics.data.gov.uk/doc/local-authority/30UN,Development Enterprise & Comm Mgnt,Other Misc,4851,Marquee hire for Leyland Festival on Saturday 17th June 2017  Frame Marquee 9 x 12 (108 Sq Metres) 40 Trestle Table (6` x,28/06/2017,0000432901,"2,065.50",Revenue,NATIONWIDE MARQUEE HIRE LTD,130006
South Ribble Council,http://statistics.data.gov.uk/doc/local-authority/30UN,Area 2 - Waste Transport/Eastern & Central Teams,External Contractors Charges,4570,STEAM CLEAN - JFC8510 - PO13 UUM - PD,16/06/2017,0000432415,65.00,Revenue,NAYLORS TRANSPORT (LEYLAND) ltd,00114828
South Ribble Council,http://statistics.data.gov.uk/doc/local-authority/30UN,Area 2 - Waste Transport/Eastern & Central Teams,External Contractors Charges,4570,STEAM CLEAN - JFC8511 - YP11CFM - PD,16/06/2017,0000432415,65.00,Revenue,NAYLORS TRANSPORT (LEYLAND) ltd,00114828
South Ribble Council,http://statistics.data.gov.uk/doc/local-authority/30UN,Area 2 - Waste Transport/Eastern & Central Teams,External Contractors Charges,4570,STEAM CLEAN - JFC8512 - MX04YNL - PD,16/06/2017,0000432415,65.00,Revenue,NAYLORS TRANSPORT (LEYLAND) ltd,00114828
South Ribble Council,http://statistics.data.gov.uk/doc/local-authority/30UN,Area 2 - Waste Transport/Eastern & Central Teams,External Contractors Charges,4570,STEAM CLEAN - JFC8513 - PJ62UCH - PD,16/06/2017,0000432415,65.00,Revenue,NAYLORS TRANSPORT (LEYLAND) ltd,00114828
South Ribble Council,http://statistics.data.gov.uk/doc/local-authority/30UN,Area 2 - Waste Transport/Eastern & Central Teams,External Contractors Charges,4570,STEAM CLEAN - JFC8514 - VO65KRD - PD,16/06/2017,0000432415,65.00,Revenue,NAYLORS TRANSPORT (LEYLAND) ltd,00114828
South Ribble Council,http://statistics.data.gov.uk/doc/local-authority/30UN,Area 2 - Waste Transport/Eastern & Central Teams,External Contractors Charges,4570,STEAM CLEAN - JFC8516 - PJ62UCL - PD,16/06/2017,0000432415,65.00,Revenue,NAYLORS TRANSPORT (LEYLAND) ltd,00114828
South Ribble Council,http://statistics.data.gov.uk/doc/local-authority/30UN,Area 2 - Waste Transport/Eastern & Central Teams,External Contractors Charges,4570,STEAM CLEAN - JFC8517 - VO65KRF - PD,16/06/2017,0000432415,65.00,Revenue,NAYLORS TRANSPORT (LEYLAND) ltd,00114828
South Ribble Council,http://statistics.data.gov.uk/doc/local-authority/30UN,Area 2 - Waste Transport/Eastern & Central Teams,External Contractors Charges,4570,STEAM CLEAN - JFC8518 - VO65KPY - PD,16/06/2017,0000432415,65.00,Revenue,NAYLORS TRANSPORT (LEYLAND) ltd,00114828
South Ribble Council,http://statistics.data.gov.uk/doc/local-authority/30UN,Area 2 - Waste Transport/Eastern & Central Teams,External Contractors Charges,4570,STEAM CLEAN - JFC8519 - VO65KPX - PD,16/06/2017,0000432415,65.00,Revenue,NAYLORS TRANSPORT (LEYLAND) ltd,00114828
South Ribble Council,http://statistics.data.gov.uk/doc/local-authority/30UN,Area 2 - Waste Transport/Eastern & Central Teams,External Contractors Charges,4570,STEAM CLEAN - JFC8521 - VN10DKL - PD,16/06/2017,0000432415,65.00,Revenue,NAYLORS TRANSPORT (LEYLAND) ltd,00114828
South Ribble Council,http://statistics.data.gov.uk/doc/local-authority/30UN,Area 2 - Waste Transport/Eastern & Central Teams,External Contractors Charges,4570,STEAM CLEAN - JFC8522 - VO65KPZ - PD,16/06/2017,0000432415,65.00,Revenue,NAYLORS TRANSPORT (LEYLAND) ltd,00114828
South Ribble Council,http://statistics.data.gov.uk/doc/local-authority/30UN,Area 2 - Waste Transport/Eastern & Central Teams,External Contractors Charges,4570,STEAM CLEAN - JFC8523 - PJ62UCM - PD,16/06/2017,0000432415,65.00,Revenue,NAYLORS TRANSPORT (LEYLAND) ltd,00114828
South Ribble Council,http://statistics.data.gov.uk/doc/local-authority/30UN,Area 2 - Waste Transport/Eastern & Central Teams,External Contractors Charges,4570,STEAM CLEAN - JFC8515 - RV14DTZ - PD,16/06/2017,0000432415,65.00,Revenue,NAYLORS TRANSPORT (LEYLAND) ltd,00114828
South Ribble Council,http://statistics.data.gov.uk/doc/local-authority/30UN,Area 2 - Waste Transport/Eastern & Central Teams,External Contractors Charges,4570,STEAM CLEAN - JFC8520 - VK09 AHJ - PD,16/06/2017,0000432415,75.00,Revenue,NAYLORS TRANSPORT (LEYLAND) ltd,00114828
South Ribble Council,http://statistics.data.gov.uk/doc/local-authority/30UN,Environmental Health,Contractors Charges 5,5310,For the funeral of the late NAME REDACTED - per NAME REDACTED,07/06/2017,0000432243,"1,400.00",Revenue,NEAL BUCKLEY,130840
South Ribble Council,http://statistics.data.gov.uk/doc/local-authority/30UN,Democratic Services,Other Misc,4421,Use of the venue for the Parliamentary Elections on Thursday 8 June 2017.  Access required from approx. 6.15am until,16/06/2017,0000432629,272.00,Revenue,NEW LONGTON VILLAGE HALL,00080088
South Ribble Council,http://statistics.data.gov.uk/doc/local-authority/30UN,Neighbourhood Admin & Support,External Contractors Charges,4570,FUEL PUMP MAINTENANCE CONTRACT 1.3.17 - 28.2.18 OPTION 2 - 2 x 6 MONTHLY SITE VISITS,07/06/2017,0000432445,690.00,Revenue,NIXON PUMPS,130367
South Ribble Council,http://statistics.data.gov.uk/doc/local-authority/30UN,Area 2 - Waste Transport/Eastern & Central Teams,External Contractors Charges,4570,SPEC REPAIR - PO16 HMY - JFC8803,28/06/2017,0000432778,383.02,Revenue,NORTH WEST MOWERS LTD,130577
South Ribble Council,http://statistics.data.gov.uk/doc/local-authority/30UN,Area 2 - Waste Transport/Eastern & Central Teams,External Contractors Charges,4570,SPEC REPAIR - PMR01A3 - JFC8657 - PD,28/06/2017,0000432779,252.15,Revenue,NORTH WEST MOWERS LTD,130577
South Ribble Council,http://statistics.data.gov.uk/doc/local-authority/30UN,Area 1 - Penwortham Western Parishes,Professional Fees,4514,DEPLOYMENT OF OFFICERS -MAY 2017,09/06/2017,0000432569,"1,537.73",Revenue,NSL LTD,00116868
South Ribble Council,http://statistics.data.gov.uk/doc/local-authority/30UN,Area 1 - Penwortham Western Parishes,Other Misc,4855,CASH COLLECTION AND RING-GO CHARGES - MAY 2017,09/06/2017,0000432569,330.17,Revenue,NSL LTD,00116868
South Ribble Council,http://statistics.data.gov.uk/doc/local-authority/30UN,Information Services,Capital Expenditure,C234,Networking Peripherals as per quote dated 02/06/17,21/06/2017,0000432761,"4,014.90",Revenue,NVIRON LTD,00028781
South Ribble Council,http://statistics.data.gov.uk/doc/local-authority/30UN,Information Services,Capital Expenditure,C234,5 Directed Days,28/06/2017,0000432885,"4,700.00",Revenue,NVIRON LTD,00028781
South Ribble Council,http://statistics.data.gov.uk/doc/local-authority/30UN,Development Enterprise & Comm Mgnt,Other Misc,4851,2nd payment for Event Management fee for 2017 Sports Awards,23/06/2017,0000432873,"1,500.00",Revenue,Pennine Events,131103
South Ribble Council,http://statistics.data.gov.uk/doc/local-authority/30UN,Development Enterprise & Comm Mgnt,Other Misc,4851, 2nd payment of the sponsorship services for south ribble sports awards  2017 Total cost 250,23/06/2017,0000432886,250.00,Revenue,Pennine Events,131103
South Ribble Council,http://statistics.data.gov.uk/doc/local-authority/30UN,Property Services,Rep & Maint Fixed Plant,2037,CANCELLED BY CREDIT,07/06/2017,0000432159,700.12,Revenue,PENNINE FIRE & SAFETY LIMITED,00117281
South Ribble Council,http://statistics.data.gov.uk/doc/local-authority/30UN,Property Services,Rep & Maint Fixed Plant,2037,Annual Contract  2017 - 2018 for the inspection of Portable Fire Extinguishers and Fire Blankets at various sites Brickcroft,07/06/2017,0000432410,5.56,Revenue,PENNINE FIRE & SAFETY LIMITED,00117281
South Ribble Council,http://statistics.data.gov.uk/doc/local-authority/30UN,Property Services,Rep & Maint Fixed Plant,2037,Annual Contract for 2017 - 2018 for the inspection of the Portable Fire Extinguishers and Fire Blankets at Civic Centre,07/06/2017,0000432410,205.11,Revenue,PENNINE FIRE & SAFETY LIMITED,00117281
South Ribble Council,http://statistics.data.gov.uk/doc/local-authority/30UN,Property Services,Rep & Maint Fixed Plant,2037,Annual Contract for 2017 - 2018 for the inspection of the Portable Fire Extinguishers and Fire Blankets Higher Walton Community,07/06/2017,0000432410,8.21,Revenue,PENNINE FIRE & SAFETY LIMITED,00117281
South Ribble Council,http://statistics.data.gov.uk/doc/local-authority/30UN,Property Services,Rep & Maint Fixed Plant,2037,Annual Contract for 2017 - 2018 for the inspection of the Portable Fire Extinguishers and Fire Blankets Holland House Farm Pavi,07/06/2017,0000432410,2.78,Revenue,PENNINE FIRE & SAFETY LIMITED,00117281
South Ribble Council,http://statistics.data.gov.uk/doc/local-authority/30UN,Property Services,Rep & Maint Fixed Plant,2037,Annual Contract for 2017 - 20178for the inspection of the Portable Fire Extinguishers and Fire Blankets  Hurst Grange Park,07/06/2017,0000432410,11.12,Revenue,PENNINE FIRE & SAFETY LIMITED,00117281
South Ribble Council,http://statistics.data.gov.uk/doc/local-authority/30UN,Property Services,Rep & Maint Fixed Plant,2037,Annual Contract for 2017 - 2018 for the inspection of the Portable Fire Extinguishers and Fire Blankets  Leyland Indoor Market,07/06/2017,0000432410,41.57,Revenue,PENNINE FIRE & SAFETY LIMITED,00117281
South Ribble Council,http://statistics.data.gov.uk/doc/local-authority/30UN,Property Services,Rep & Maint Fixed Plant,2037,Annual Contract for 2017 - 2018 for the inspection of the Portable Fire Extinguishers and Fire Blankets Middleforth Garage Toilet,07/06/2017,0000432410,2.78,Revenue,PENNINE FIRE & SAFETY LIMITED,00117281
South Ribble Council,http://statistics.data.gov.uk/doc/local-authority/30UN,Property Services,Rep & Maint Fixed Plant,2037,Annual Contract for 2017 - 2018 for the inspection of the Portable Fire Extinguishers and Fire Blankets Moss Side Community Ce,07/06/2017,0000432410,16.22,Revenue,PENNINE FIRE & SAFETY LIMITED,00117281
South Ribble Council,http://statistics.data.gov.uk/doc/local-authority/30UN,Property Services,Rep & Maint Fixed Plant,2037,Annual Contract for 2017 - 2018 for the inspection of the Portable Fire Extinguishers and Fire Blankets at Moss Side Depot,07/06/2017,0000432410,157.12,Revenue,PENNINE FIRE & SAFETY LIMITED,00117281
South Ribble Council,http://statistics.data.gov.uk/doc/local-authority/30UN,Property Services,Rep & Maint Fixed Plant,2037,Annual Contract for 2017 - 2018 for the inspection of the Portable Fire Extinguishers and Fire Blankets Penwortham Town Council,07/06/2017,0000432410,31.75,Revenue,PENNINE FIRE & SAFETY LIMITED,00117281
South Ribble Council,http://statistics.data.gov.uk/doc/local-authority/30UN,Property Services,Rep & Maint Fixed Plant,2037,Annual Contract for 2017 - 2018 for the inspection of the Portable Fire Extinguishers and Fire Blankets  Ranger`s Office,07/06/2017,0000432410,2.78,Revenue,PENNINE FIRE & SAFETY LIMITED,00117281
South Ribble Council,http://statistics.data.gov.uk/doc/local-authority/30UN,Property Services,Rep & Maint Fixed Plant,2037,Annual Contract for 2017 - 2018 for the inspection of the Portable Fire Extinguishers and Fire Blankets Welcome Hall Community,07/06/2017,0000432410,8.99,Revenue,PENNINE FIRE & SAFETY LIMITED,00117281
South Ribble Council,http://statistics.data.gov.uk/doc/local-authority/30UN,Property Services,Rep & Maint Fixed Plant,2037,Annual Contract for 2017 - 2018 for the inspection of the Portable Fire Extinguishers and Fire Blankets Worden Arts and Craft Ce,07/06/2017,0000432410,128.10,Revenue,PENNINE FIRE & SAFETY LIMITED,00117281
South Ribble Council,http://statistics.data.gov.uk/doc/local-authority/30UN,Property Services,Rep & Maint Fixed Plant,2037,"Annual contract for the inspection of the portable  fire equipment 2017/2018 at Leyland Museum, Church Road, Leyland",07/06/2017,0000432410,15.90,Revenue,PENNINE FIRE & SAFETY LIMITED,00117281
South Ribble Council,http://statistics.data.gov.uk/doc/local-authority/30UN,Area 2 - Waste Transport/Eastern & Central Teams,External Contractors Charges,4570,FIRE EXTINGUISHERS SERVICE/MAINTENANCE,30/06/2017,0000432985,377.93,Revenue,PENNINE FIRE & SAFETY LIMITED,00117281
South Ribble Council,http://statistics.data.gov.uk/doc/local-authority/30UN,Property Services,External Contractors Charges,4575,To supply hot meals @ 6.20 per head for 55 on 24th May @ 16.30 to SRBC,28/06/2017,0000432980,310.00,Revenue,Penningtons Catering Ltd,131684
South Ribble Council,http://statistics.data.gov.uk/doc/local-authority/30UN,Democratic Services,Other Misc,4421,8th June (po raised on wrong ac 00102322),21/06/2017,0000432734,254.00,Revenue,PENWORTHAM ST MARY`S PCC,00067179
South Ribble Council,http://statistics.data.gov.uk/doc/local-authority/30UN,Environmental Health,Professional Fees,4522,gov fee,23/06/2017,0000432458,396.00,Revenue,Personnel Checks,131483
South Ribble Council,http://statistics.data.gov.uk/doc/local-authority/30UN,Environmental Health,Professional Fees,4522,admin fee,23/06/2017,0000432458,119.97,Revenue,Personnel Checks,131483
South Ribble Council,http://statistics.data.gov.uk/doc/local-authority/30UN,Area 1 - Penwortham Western Parishes,Materials General,4040,6mm POLYCARBONATE - 3050 x 2050,28/06/2017,0000432917,"1,784.90",Revenue,Perspex Distribution Ltd,131635
South Ribble Council,http://statistics.data.gov.uk/doc/local-authority/30UN,Area 1 - Penwortham Western Parishes,Materials General,4040,freight charge,28/06/2017,0000432917,18.50,Revenue,Perspex Distribution Ltd,131635
South Ribble Council,http://statistics.data.gov.uk/doc/local-authority/30UN,Neighbourhood Admin & Support,Vehicle Running Costs,3132,FUEL FOR APRIL 2017,16/06/2017,0000432613,294.83,Revenue,PETROMEX MILLBROOK WAY SERVICE STATION,00062572
South Ribble Council,http://statistics.data.gov.uk/doc/local-authority/30UN,Information Services,Stationery,4133,"50,000 Evolution Everyday A4 80gm 15,000 Evolution Business A4 2500 Evolution Everyday A3 80gm 1000 sheets White A4",07/06/2017,0000432430,353.10,Revenue,PREMIER PAPER GROUP LTD,00022606
South Ribble Council,http://statistics.data.gov.uk/doc/local-authority/30UN,Regeneration,Other Misc,4851,"Printing of 1,000 Longton Fete Programmes as per quote number 3007",23/06/2017,0000432880,160.20,Revenue,Preston City Council,131913
South Ribble Council,http://statistics.data.gov.uk/doc/local-authority/30UN,Regeneration,Advertising,4842,"Printing of 2,000 Penwortham Live Schedules. Full colour A3 folder into A4",23/06/2017,0000432880,277.67,Revenue,Preston City Council,131913
South Ribble Council,http://statistics.data.gov.uk/doc/local-authority/30UN,Regeneration,Advertising,4842,Printing of 1000 x Much Hoole programmes as discussed with NAME REDACTED,23/06/2017,0000432880,160.20,Revenue,Preston City Council,131913
South Ribble Council,http://statistics.data.gov.uk/doc/local-authority/30UN,Area 2 - Waste Transport/Eastern & Central Teams,Materials General,4040,TYRE REPAIRS - TR173 - AW,14/06/2017,0000432573,"1,054.00",Revenue,PRESTON TYRE SPECIALISTS,00109516
South Ribble Council,http://statistics.data.gov.uk/doc/local-authority/30UN,Democratic Services,Other Misc,4423,"85,502 x A5 Parliamentary Poll Cards",07/06/2017,0000432398,"4,921.61",Revenue,PRINT IMAGE NETWORK LTD,00089199
South Ribble Council,http://statistics.data.gov.uk/doc/local-authority/30UN,Democratic Services,Other Misc,4421,"2,539 - SOUTH RIBBLE PARLIAMENTARY CORRESPONDING NUMBER LISTSJob No - (SG03/082330)",09/06/2017,0000432568,"1,011.07",Revenue,PRINT IMAGE NETWORK LTD,00089199
South Ribble Council,http://statistics.data.gov.uk/doc/local-authority/30UN,Democratic Services,Printing,4127,"12,000 South Ribble HEF outgoing envelopes",16/06/2017,0000432678,435.40,Revenue,PRINT IMAGE NETWORK LTD,00089199
South Ribble Council,http://statistics.data.gov.uk/doc/local-authority/30UN,Democratic Services,Other Misc,4422,"Your ref:  SG03/080772 Parliamentary Voter-Peel Connect Postal Vote Packs Print, personalisation and collation of postal vote",28/06/2017,0000432840,"14,670.85",Revenue,PRINT IMAGE NETWORK LTD,00089199
South Ribble Council,http://statistics.data.gov.uk/doc/local-authority/30UN,Information Services,Postage,4292,Franking Funds top up payment,28/06/2017,0000432981,"9,000.00",Revenue,Purchase Power,00093923
South Ribble Council,http://statistics.data.gov.uk/doc/local-authority/30UN,Information Services,Postage,4292,Transaction fee,28/06/2017,0000432981,90.00,Revenue,Purchase Power,00093923
South Ribble Council,http://statistics.data.gov.uk/doc/local-authority/30UN,Information Services,Training Expense-Course Fees,1420,"QATSQLPLUS Advanced SQL course - 24th July, delegate NAME REDACTED, as per quote",14/06/2017,0000432540,917.00,Revenue,QA LIMITED,00113638
South Ribble Council,http://statistics.data.gov.uk/doc/local-authority/30UN,Area 3 - Parks/Leyland East West,Contract Hire & Lease Costs,3212,HIRE OF 3 TON EXCAVATOR WITH AUGER ATTACHMENT.  ON HIRE 24.5.17 FOR 3 DAYS.,16/06/2017,0000432627,333.00,Revenue,Readyplant Limited,131535
South Ribble Council,http://statistics.data.gov.uk/doc/local-authority/30UN,Area 3 - Parks/Leyland East West,Contract Hire & Lease Costs,3212,fuel,16/06/2017,0000432627,10.80,Revenue,Readyplant Limited,131535
South Ribble Council,http://statistics.data.gov.uk/doc/local-authority/30UN,Area 2 - Waste Transport/Eastern & Central Teams,External Contractors Charges,4570,"Spec Repair, RV14 DTZ, JFC8686. (NAME REDACTED)",28/06/2017,0000432739,331.00,Revenue,Red Forge Limited,131499
South Ribble Council,http://statistics.data.gov.uk/doc/local-authority/30UN,Property Services,Other Misc,4421,"The Hunters, Hennel Lane, Lostock Hall, Preston, PR5 5UL Setting up Polling Station ( 8th June 2017) to attend site 07.30 (or ",21/06/2017,0000432680,505.00,Revenue,RED ROSE BUILDING MAINTENANCE,00085410
South Ribble Council,http://statistics.data.gov.uk/doc/local-authority/30UN,Development Enterprise & Comm Mgnt,Other Misc,4851,Maintenance of toilets and Eurobins on Worden Park at Leyland Festival on Saturday 17th June 2017,23/06/2017,0000432837,535.00,Revenue,RED ROSE BUILDING MAINTENANCE,00085410
South Ribble Council,http://statistics.data.gov.uk/doc/local-authority/30UN,Homelessness,Contractors Charges 5,5311,"OSM payment July, August & September 2017",28/06/2017,0000432719,"5,624.90",Revenue,REDDY & CO,00108177
South Ribble Council,http://statistics.data.gov.uk/doc/local-authority/30UN,Regeneration,Other Misc,4851,industrial shelving for unit,21/06/2017,0000432473,828.60,Revenue,Ribble Valley Shelving Ltd,132228
South Ribble Council,http://statistics.data.gov.uk/doc/local-authority/30UN,Information Services,Lease Rental Charges,4036,Lease Rental charge,14/06/2017,0000432576,800.00,Revenue,RICOH (UK) LTD,00082976
South Ribble Council,http://statistics.data.gov.uk/doc/local-authority/30UN,Area 1 - Penwortham Western Parishes,Operational Furniture & Equip,4010,CP3 2000 KNAPSACK SPRAYER (PA2022) 20 ltrs (1573104),28/06/2017,0000432823,290.00,Revenue,RIGBY TAYLOR LTD,00033145
South Ribble Council,http://statistics.data.gov.uk/doc/local-authority/30UN,Area 1 - Penwortham Western Parishes,Operational Furniture & Equip,4010,SERVICE KIT FOR THE CP3 SPRAYER (750308),28/06/2017,0000432823,32.50,Revenue,RIGBY TAYLOR LTD,00033145
South Ribble Council,http://statistics.data.gov.uk/doc/local-authority/30UN,Area 1 - Penwortham Western Parishes,Operational Furniture & Equip,4010,ICADE (1 ltr),28/06/2017,0000432823,180.00,Revenue,RIGBY TAYLOR LTD,00033145
South Ribble Council,http://statistics.data.gov.uk/doc/local-authority/30UN,Neighbourhood Admin & Support,Operational Furniture & Equip,4010,BAG LOOP - B05DL110,28/06/2017,0000432835,255.00,Revenue,ROBERT ACTON PRODUCTS DEVELOPMENTS,00014452
South Ribble Council,http://statistics.data.gov.uk/doc/local-authority/30UN,Property Services,Other Misc,485C,Misc,16/06/2017,0000432616,100.00,Revenue,ROUNDHOUSE MOMENTUM DEVELOPMENTS LTD,131973
South Ribble Council,http://statistics.data.gov.uk/doc/local-authority/30UN,Property Services,Other Misc,485C,Misc,16/06/2017,0000432616,100.00,Revenue,ROUNDHOUSE MOMENTUM DEVELOPMENTS LTD,131973
South Ribble Council,http://statistics.data.gov.uk/doc/local-authority/30UN,Property Services,Other Misc,485C,Misc,16/06/2017,0000432616,100.00,Revenue,ROUNDHOUSE MOMENTUM DEVELOPMENTS LTD,131973
South Ribble Council,http://statistics.data.gov.uk/doc/local-authority/30UN,Property Services,Other Misc,485C,Misc,16/06/2017,0000432616,100.00,Revenue,ROUNDHOUSE MOMENTUM DEVELOPMENTS LTD,131973
South Ribble Council,http://statistics.data.gov.uk/doc/local-authority/30UN,Property Services,Other Misc,485C,Misc,16/06/2017,0000432616,100.00,Revenue,ROUNDHOUSE MOMENTUM DEVELOPMENTS LTD,131973
South Ribble Council,http://statistics.data.gov.uk/doc/local-authority/30UN,Democratic Services,Other Misc,4422,Misc,21/06/2017,0000432438,"2,584.21",Revenue,ROYAL MAIL GROUP PLC,00033543
South Ribble Council,http://statistics.data.gov.uk/doc/local-authority/30UN,Information Services,Postage,4295,Postage,07/06/2017,0000432464,569.24,Revenue,ROYAL MAIL GROUP PLC,00033543
South Ribble Council,http://statistics.data.gov.uk/doc/local-authority/30UN,Democratic Services,Other Misc,4422,Misc,23/06/2017,0000432730,"3,314.17",Revenue,ROYAL MAIL GROUP PLC,00033543
South Ribble Council,http://statistics.data.gov.uk/doc/local-authority/30UN,Information Services,Postage,4295,Response services,21/06/2017,0000432751,416.13,Revenue,ROYAL MAIL GROUP PLC,00033543
South Ribble Council,http://statistics.data.gov.uk/doc/local-authority/30UN,Development Enterprise & Comm Mgnt,Sports Dev Expenses,4890,4 Staff to take part in Rugby Ready Programme  4 Staff to take part in L1 Rugby Course 450 + VAT 90,16/06/2017,0000432660,450.00,Revenue,Rugby Football Development ltd,132262
South Ribble Council,http://statistics.data.gov.uk/doc/local-authority/30UN,Area 3 - Parks/Leyland East West,External Contractors Charges,4570,WORKS TO WOODLAND THINNING ON SCHLESWIG WAY,02/06/2017,0000432108,"2,950.00",Revenue,RUSS ASPINALL T/A BEARDWOOD TREE SERVICE,00120443
South Ribble Council,http://statistics.data.gov.uk/doc/local-authority/30UN,Regeneration,Capital Expenditure,C230,"�	Standard Sailflags (3.2m) 95.00 each inc. bases x 4 �	carry cases,  9.50 x 2 �	Standard Delivery (1 week) 9.50",23/06/2017,0000432502,408.50,Revenue,Sailflags,132260
South Ribble Council,http://statistics.data.gov.uk/doc/local-authority/30UN,Property Services,Energy Costs,2303,7/12/16 to 7/3,28/06/2017,0000430777,651.80,Revenue,SCOTTISH HYDRO ELECTRIC,130051
South Ribble Council,http://statistics.data.gov.uk/doc/local-authority/30UN,Property Services,Energy Costs,2307,ccl,28/06/2017,0000430777,31.08,Revenue,SCOTTISH HYDRO ELECTRIC,130051
South Ribble Council,http://statistics.data.gov.uk/doc/local-authority/30UN,Property Services,Energy Costs,2304,23/2/17 to 31/5/17,14/06/2017,0000432662,"1,626.52",Revenue,SCOTTISH HYDRO ELECTRIC,130051
South Ribble Council,http://statistics.data.gov.uk/doc/local-authority/30UN,Property Services,Energy Costs,2307,CCL,14/06/2017,0000432662,44.25,Revenue,SCOTTISH HYDRO ELECTRIC,130051
South Ribble Council,http://statistics.data.gov.uk/doc/local-authority/30UN,Property Services,Energy Costs,2303,1/5/17 to 31/5/17,23/06/2017,0000432856,346.99,Revenue,SCOTTISH HYDRO ELECTRIC,130051
South Ribble Council,http://statistics.data.gov.uk/doc/local-authority/30UN,Property Services,Energy Costs,2307,CCl,23/06/2017,0000432856,16.79,Revenue,SCOTTISH HYDRO ELECTRIC,130051
South Ribble Council,http://statistics.data.gov.uk/doc/local-authority/30UN,Property Services,Energy Costs,2303,1/3/17 to 6/6/17,23/06/2017,0000432857,837.02,Revenue,SCOTTISH HYDRO ELECTRIC,130051
South Ribble Council,http://statistics.data.gov.uk/doc/local-authority/30UN,Property Services,Energy Costs,2307,CCL,23/06/2017,0000432857,42.23,Revenue,SCOTTISH HYDRO ELECTRIC,130051
South Ribble Council,http://statistics.data.gov.uk/doc/local-authority/30UN,Property Services,Energy Costs,2303,1/5/17 to 31/5/17,23/06/2017,0000432858,"2,830.44",Revenue,SCOTTISH HYDRO ELECTRIC,130051
South Ribble Council,http://statistics.data.gov.uk/doc/local-authority/30UN,Property Services,Energy Costs,2307,CCL,23/06/2017,0000432858,150.50,Revenue,SCOTTISH HYDRO ELECTRIC,130051
South Ribble Council,http://statistics.data.gov.uk/doc/local-authority/30UN,Property Services,Energy Costs,2303,1/5/17 to 31/5/17,23/06/2017,0000432861,"1,687.83",Revenue,SCOTTISH HYDRO ELECTRIC,130051
South Ribble Council,http://statistics.data.gov.uk/doc/local-authority/30UN,Property Services,Energy Costs,2307,CCl,23/06/2017,0000432861,92.65,Revenue,SCOTTISH HYDRO ELECTRIC,130051
South Ribble Council,http://statistics.data.gov.uk/doc/local-authority/30UN,Property Services,Energy Costs,2303,1/5/17 to 31/5/17,23/06/2017,0000432862,989.23,Revenue,SCOTTISH HYDRO ELECTRIC,130051
South Ribble Council,http://statistics.data.gov.uk/doc/local-authority/30UN,Property Services,Energy Costs,2307,CCl,23/06/2017,0000432862,51.17,Revenue,SCOTTISH HYDRO ELECTRIC,130051
South Ribble Council,http://statistics.data.gov.uk/doc/local-authority/30UN,Democratic Services,Other Misc,4421,85 x GESDR Presiding Officer Sundry Refill Packs - Parliamentary Election @ 13.92 each + VAT,02/06/2017,0000432290,"1,113.60",Revenue,SHAW & SONS LTD,00034542
South Ribble Council,http://statistics.data.gov.uk/doc/local-authority/30UN,Democratic Services,Other Misc,4421,"6 Polling station pavement signs LE108 (49 each) 125 Polling station notices LE6 (105) (Order form attached) 300 Polling",16/06/2017,0000432402,534.19,Revenue,SHAW & SONS LTD,00034542
South Ribble Council,http://statistics.data.gov.uk/doc/local-authority/30UN,Homelessness,Contributions,4730,Shelter legal licences,28/06/2017,0000432922,400.00,Revenue,SHELTER PUBLICATIONS,00034568
South Ribble Council,http://statistics.data.gov.uk/doc/local-authority/30UN,Information Services,Professional Fees,4520,Shredding of Confidential Waste 2017/18,07/06/2017,0000432345,279.90,Revenue,SHRED-IT LTD,00109134
South Ribble Council,http://statistics.data.gov.uk/doc/local-authority/30UN,Area 3 - Parks/Leyland East West,Grounds Maint Cntrctrs Chgs,4657,BELLE GROUP PLCLX320 WACKER PLATE 10509289,30/06/2017,0000431530,365.00,Revenue,SIG FIXINGS,130798
South Ribble Council,http://statistics.data.gov.uk/doc/local-authority/30UN,Area 3 - Parks/Leyland East West,Grounds Maint Cntrctrs Chgs,4657,BELLE GROUP PLCLX320 WACKER PLATE 10509289,30/06/2017,0000431530,365.00,Revenue,SIG FIXINGS,130798
South Ribble Council,http://statistics.data.gov.uk/doc/local-authority/30UN,Neighbourhood Admin & Support,Clothing- Uniforms & Laundry,4410,WATERPROOF TROUSERS - SUPERTOUCH 18B4 YELLOW - large - SRBC25,23/06/2017,0000432834,48.60,Revenue,SMART IMAGE WORKWEAR,00031503
South Ribble Council,http://statistics.data.gov.uk/doc/local-authority/30UN,Neighbourhood Admin & Support,Clothing- Uniforms & Laundry,4410,WATERPROOF TROUSERS - SUPERTOUCH 18B4 YELLOW - EXTRA LARGE - SRBC25,23/06/2017,0000432834,60.75,Revenue,SMART IMAGE WORKWEAR,00031503
South Ribble Council,http://statistics.data.gov.uk/doc/local-authority/30UN,Neighbourhood Admin & Support,Clothing- Uniforms & Laundry,4410,WATERPROOF JACKETS  - SUPERTOUCH 35B4 YELLOW - EXTRA LARGE - SRBC24,23/06/2017,0000432834,85.00,Revenue,SMART IMAGE WORKWEAR,00031503
South Ribble Council,http://statistics.data.gov.uk/doc/local-authority/30UN,Neighbourhood Admin & Support,Clothing- Uniforms & Laundry,4410,WATERPROOF JACKETS  - SUPERTOUCH 35B4 YELLOW - MEDIUM - SRBC24,23/06/2017,0000432834,85.00,Revenue,SMART IMAGE WORKWEAR,00031503
South Ribble Council,http://statistics.data.gov.uk/doc/local-authority/30UN,Neighbourhood Admin & Support,Clothing- Uniforms & Laundry,4410,WATERPROOF JACKETS  - SUPERTOUCH 35B4 YELLOW - LARGE - SRBC24,23/06/2017,0000432834,85.00,Revenue,SMART IMAGE WORKWEAR,00031503
South Ribble Council,http://statistics.data.gov.uk/doc/local-authority/30UN,Neighbourhood Admin & Support,Clothing- Uniforms & Laundry,4410,Bomber Jacket - PORTWEST C466 size EXTRA LARGE - SRBC23,23/06/2017,0000432834,179.00,Revenue,SMART IMAGE WORKWEAR,00031503
South Ribble Council,http://statistics.data.gov.uk/doc/local-authority/30UN,Neighbourhood Admin & Support,Clothing- Uniforms & Laundry,4410,Bomber Jacket - PORTWEST C466 size XXLARGE,23/06/2017,0000432834,71.60,Revenue,SMART IMAGE WORKWEAR,00031503
South Ribble Council,http://statistics.data.gov.uk/doc/local-authority/30UN,Democratic Services,Other Misc,4424,USE OF SOUTHRIBBLE TENNIS & FITNESS FOR THE PARIAMENTARY COUNT COMMENCING AT 10 PM ON 8 JUNE 2017,28/06/2017,0000432902,"1,434.10",Revenue,SOUTH RIBBLE COMMUNITY LEISURE LTD,00094210
South Ribble Council,http://statistics.data.gov.uk/doc/local-authority/30UN,Democratic Services,Other Misc,4424,tax items,28/06/2017,0000432902,610.00,Revenue,SOUTH RIBBLE COMMUNITY LEISURE LTD,00094210
South Ribble Council,http://statistics.data.gov.uk/doc/local-authority/30UN,Area 2 - Waste Transport/Eastern & Central Teams,Materials General,4040,12 ROLLERS/BUSHES - BIN 1268  - BO,28/06/2017,0000432825,570.00,Revenue,SPALDINGS,00070849
South Ribble Council,http://statistics.data.gov.uk/doc/local-authority/30UN,Democratic Services,Other Misc,4421,Venue for Lancashire County Council Elections on Thursday 4 May 2017.  Access required from approx. 6.15am until 10.15pm.,16/06/2017,0000432704,310.00,Revenue,ST AMBROSE CHURCH HALL,00081540
South Ribble Council,http://statistics.data.gov.uk/doc/local-authority/30UN,Development Enterprise & Comm Mgnt,Other Misc,4851,Skills project development for Schools Workshop -  Ref Leyland Truck Trail May 2017,16/06/2017,0000432604,"2,480.00",Revenue,STEMFirst Ltd,132095
South Ribble Council,http://statistics.data.gov.uk/doc/local-authority/30UN,Development Enterprise & Comm Mgnt,Advertising,4842,Management of Museum Website as per agreement: Six Months Renewal from 1-3-17,28/06/2017,0000432944,440.00,Revenue,STEPHEN WATSON,00113557
South Ribble Council,http://statistics.data.gov.uk/doc/local-authority/30UN,Development Enterprise & Comm Mgnt,Other Misc,4851,"Truck Trail Set up and management of Twitter, Instagram & Facebook between Feb- Sept 2017 @4,850.00",07/06/2017,0000432339,550.00,Revenue,STONE CREATE LTD,130896
South Ribble Council,http://statistics.data.gov.uk/doc/local-authority/30UN,Area 1 - Penwortham Western Parishes,Waste Disposal Charges,5110,Provision of low sided skip for bypass sweepings Please deliver on Wednesday 26th April E&R Thursday 27th April (pm) E&R,16/06/2017,0000432087,300.00,Revenue,SUEZ  RECYCLING AND REC UK LTD 80005291,00038920
South Ribble Council,http://statistics.data.gov.uk/doc/local-authority/30UN,Area 3 - Parks/Leyland East West,Grounds Maint Cntrctrs Chgs,4657,1x N752353 Nijha Bearing Hub with bearings.,28/06/2017,0000432943,330.58,Revenue,SUTCLIFFE PLAY LTD,00034953
South Ribble Council,http://statistics.data.gov.uk/doc/local-authority/30UN,Area 3 - Parks/Leyland East West,Grounds Maint Cntrctrs Chgs,4657,Carriage,28/06/2017,0000432943,33.00,Revenue,SUTCLIFFE PLAY LTD,00034953
South Ribble Council,http://statistics.data.gov.uk/doc/local-authority/30UN,Revenues Plus,Operational Furniture & Equip,4010,NAFN Fees - 17/18,16/06/2017,0000432705,"1,000.00",Revenue,TAMESIDE METROPOLITAN BOROUGH COUNCIL,00037293
South Ribble Council,http://statistics.data.gov.uk/doc/local-authority/30UN,Area 3 - Parks/Leyland East West,Operational Furniture & Equip,4010,125 LITRE WATER BOWSER C/W 50MM BALL 1`` PETROL PUMP  (* to be collected from Walsall depot),16/06/2017,0000432605,"2,460.00",Revenue,Tardis Environmental,132251
South Ribble Council,http://statistics.data.gov.uk/doc/local-authority/30UN,Homelessness,Contractors Charges 5,5311,SRBC placement ADDRESS REDACTED (PW) 24/4/17-20/5/17,14/06/2017,0000432648,810.00,Revenue,Temporary Housing Solutions Ltd,132118
South Ribble Council,http://statistics.data.gov.uk/doc/local-authority/30UN,Area 2 - Waste Transport/Eastern & Central Teams,Materials General,4040,1 RAM - PJ62 UCH - JFC8727 - GA,02/06/2017,0000432306,611.74,Revenue,TERBERG MATEC UK LTD,00058625
South Ribble Council,http://statistics.data.gov.uk/doc/local-authority/30UN,Area 2 - Waste Transport/Eastern & Central Teams,External Contractors Charges,4570,Spec repair VO65KRF JFC8713,21/06/2017,0000432534,"2,958.01",Revenue,TERBERG MATEC UK LTD,00058625
South Ribble Council,http://statistics.data.gov.uk/doc/local-authority/30UN,Area 2 - Waste Transport/Eastern & Central Teams,Materials General,4040,"1 cylinder, PJ62 UCH, JFC8727. (NAME REDACTED)",21/06/2017,0000432722,346.50,Revenue,TERBERG MATEC UK LTD,00058625
South Ribble Council,http://statistics.data.gov.uk/doc/local-authority/30UN,Area 2 - Waste Transport/Eastern & Central Teams,External Contractors Charges,4570,SPEC REPAIR - VN10DKL - JFC8800 - PD,28/06/2017,0000432826,415.90,Revenue,TERBERG MATEC UK LTD,00058625
South Ribble Council,http://statistics.data.gov.uk/doc/local-authority/30UN,Regeneration,Professional Fees,4520,Installation and testing of hives on land in Carr Wood,21/06/2017,0000432426,"1,200.00",Revenue,The Bee centre,132104
South Ribble Council,http://statistics.data.gov.uk/doc/local-authority/30UN,Regeneration,Professional Fees,4520,Development of tree hives for near-native bee reintroduction via the Central Parks programme,21/06/2017,0000432427,"1,400.00",Revenue,The Bee centre,132104
South Ribble Council,http://statistics.data.gov.uk/doc/local-authority/30UN,Legal,Publications,4142,Publlications,09/06/2017,0000432484,445.00,Revenue,THOMSON REUTERS,00034979
South Ribble Council,http://statistics.data.gov.uk/doc/local-authority/30UN,Legal,Publications,4142,Publlications,21/06/2017,0000432693,745.00,Revenue,THOMSON REUTERS,00034979
South Ribble Council,http://statistics.data.gov.uk/doc/local-authority/30UN,Area 3 - Parks/Leyland East West,Grounds Maint Cntrctrs Chgs,4657,1x 9.02400 windpipes,23/06/2017,0000432768,"4,494.00",Revenue,TIMBERPLAY LTD,00055440
South Ribble Council,http://statistics.data.gov.uk/doc/local-authority/30UN,Area 3 - Parks/Leyland East West,Grounds Maint Cntrctrs Chgs,4657,Carriage,23/06/2017,0000432768,449.40,Revenue,TIMBERPLAY LTD,00055440
South Ribble Council,http://statistics.data.gov.uk/doc/local-authority/30UN,Community Safety,Operational Furniture & Equip,4013,"To supply, install & commission Axis 4 sensor 360 CCTV Camera at Moss Side Community Centre as per your Quotation ",16/06/2017,0000432570,"1,920.00",Revenue,Total Building Security Ltd,132225
South Ribble Council,http://statistics.data.gov.uk/doc/local-authority/30UN,Community Safety,Operational Furniture & Equip,4013,"To supply, install & commission Axis 4 sensor 360 CCTV Camera at Royal Avenue Leyland to include, camera, 4 way transmitter",16/06/2017,0000432571,"4,900.00",Revenue,Total Building Security Ltd,132225
South Ribble Council,http://statistics.data.gov.uk/doc/local-authority/30UN,Regeneration,Other Misc,4861,"3 x 1000 A4 double sided folded into A5, full colour, on 300 gsm silk art/sati matt.",30/06/2017,0000432767,385.00,Revenue,TOWNSEND PRINT SERVICES LTD,00037170
South Ribble Council,http://statistics.data.gov.uk/doc/local-authority/30UN,Area 1 - Penwortham Western Parishes,Materials General,4040,Standpipe Hire 09A019401 & 08A110488 1.1.17 - 31.3.17,28/06/2017,0000432893,257.52,Revenue,UNITED UTILITIES,00116800
South Ribble Council,http://statistics.data.gov.uk/doc/local-authority/30UN,Area 1 - Penwortham Western Parishes,Materials General,4040,Standpipe Hire 09A019401 & 08A110488 1.10.16 - 31.12.16,28/06/2017,0000432928,257.52,Revenue,UNITED UTILITIES,00116800
South Ribble Council,http://statistics.data.gov.uk/doc/local-authority/30UN,Area 1 - Penwortham Western Parishes,Materials General,4040,Standpipe Hire 09A019401 & 08A110488 1.7.16 - 30.9.16,28/06/2017,0000432930,257.52,Revenue,UNITED UTILITIES,00116800
South Ribble Council,http://statistics.data.gov.uk/doc/local-authority/30UN,Area 1 - Penwortham Western Parishes,Materials General,4040,Standpipe Hire 09A019401 & 08A110488 1.7.16 - 30.9.16,28/06/2017,0000432932,262.50,Revenue,UNITED UTILITIES,00116800
South Ribble Council,http://statistics.data.gov.uk/doc/local-authority/30UN,Area 1 - Penwortham Western Parishes,Materials General,4040,Standpipe Hire 09A019401 & 08A110488 1.7.15 - 30.9.15,28/06/2017,0000432934,262.50,Revenue,UNITED UTILITIES,00116800
South Ribble Council,http://statistics.data.gov.uk/doc/local-authority/30UN,Area 1 - Penwortham Western Parishes,Materials General,4040,Standpipe Hire 09A019401 & 08A110488 1.1.16 - 31.3.16,28/06/2017,0000432937,257.52,Revenue,UNITED UTILITIES,00116800
South Ribble Council,http://statistics.data.gov.uk/doc/local-authority/30UN,Area 1 - Penwortham Western Parishes,Materials General,4040,Standpipe Hire 09A019401 & 08A110488 1.4.16 - 30.6.16,30/06/2017,0000432939,257.52,Revenue,UNITED UTILITIES,00116800
South Ribble Council,http://statistics.data.gov.uk/doc/local-authority/30UN,Property Services,Operational Furniture & Equip,4012,Annual Contract for 2017/2018 to cover the rental and the vending  machines at the Civic Centre,02/06/2017,0000432338,322.09,Revenue,VENDING ENTERPRISES,00101501
South Ribble Council,http://statistics.data.gov.uk/doc/local-authority/30UN,Democratic Services,Other Expenses,463A,Provide Traffic Management for the Mayor Elect`s Civic Sunday on the 4 June 2017 as discussed with NAME REDACTED.,07/06/2017,0000432460,600.00,Revenue,VENTBROOK LTD,131218
South Ribble Council,http://statistics.data.gov.uk/doc/local-authority/30UN,Information Services,Peripherals,4269,"Annual purchase order for ISDN lines, line rentals & call charges for period 01/04/17 - 31/03/18",02/06/2017,0000432378,"1,280.57",Revenue,VODAFONE RE:CABLE & WIRELESS UK,130810
South Ribble Council,http://statistics.data.gov.uk/doc/local-authority/30UN,Information Services,Peripherals,4247,"Link, Internet & Router 01/06/17 - 30/06/17",07/06/2017,0000432529,"1,312.66",Revenue,VODAFONE RE:CABLE & WIRELESS UK,130810
South Ribble Council,http://statistics.data.gov.uk/doc/local-authority/30UN,Area 3 - Parks/Leyland East West,Materials General,4046,SUMMER BEDDING PLANS AS PER QUOTATION FOR DELIVERY WEEK COMMENCING 5TH JUNE 2017,23/06/2017,0000432833,"3,460.90",Revenue,Walkers Oakfield Nurseries,131380
South Ribble Council,http://statistics.data.gov.uk/doc/local-authority/30UN,Property Services,Water Charges,2511,14/11/16 to 13/2/17,02/06/2017,0000432328,"2,637.18",Revenue,WATER PLUS,00029845
South Ribble Council,http://statistics.data.gov.uk/doc/local-authority/30UN,Property Services,Water Charges,2511,14/2/17 to 13/5/17,02/06/2017,0000432329,"2,557.92",Revenue,WATER PLUS,00029845
South Ribble Council,http://statistics.data.gov.uk/doc/local-authority/30UN,Property Services,Water Charges,2511,12/8/16 to 13/11/16,02/06/2017,0000432330,"2,108.57",Revenue,WATER PLUS,00029845
South Ribble Council,http://statistics.data.gov.uk/doc/local-authority/30UN,Property Services,Water Charges,2511,15/2/17 to 25/5/17,07/06/2017,0000432408,"8,063.85",Revenue,WATER PLUS,00029845
South Ribble Council,http://statistics.data.gov.uk/doc/local-authority/30UN,Property Services,Water Charges,2511,13/2/17 to 22/5/17,09/06/2017,0000432486,963.58,Revenue,WATER PLUS,00029845
South Ribble Council,http://statistics.data.gov.uk/doc/local-authority/30UN,HR & Communications,Consultancy Fees,4541,MO AND RELATED ADVICE FOR WORK CARRIED OUT 8TH - 23RD MAY 2017,14/06/2017,0000432659,432.00,Revenue,WEIGHTMANS LLP,00120867
South Ribble Council,http://statistics.data.gov.uk/doc/local-authority/30UN,Legal,Balance Sheet,0030,Fees services rendered 27 June 2016 until 29 July 2016 (939.60)  Disbursements (paid) (9.00),28/06/2017,0000432941,939.60,Revenue,WEIGHTMANS LLP,00120867
South Ribble Council,http://statistics.data.gov.uk/doc/local-authority/30UN,Legal,Balance Sheet,0030,disenbursements,28/06/2017,0000432941,9.00,Revenue,WEIGHTMANS LLP,00120867
South Ribble Council,http://statistics.data.gov.uk/doc/local-authority/30UN,Property Services,Other Misc,4421,"ADDRESS REDACTED Provision to above site address of 1 no mobile polling station 6.0 20 inc delivery 03/05/2",07/06/2017,0000432501,750.00,Revenue,Wernick Hire Ltd,131449
South Ribble Council,http://statistics.data.gov.uk/doc/local-authority/30UN,Area 3 - Parks/Leyland East West,Grounds Maint Cntrctrs Chgs,4657,1x 5901-070 universal Joint Assembly (4 Chain Version) c/w fixings,02/06/2017,0000432289,832.00,Revenue,WICKSTEED LEISURE LTD,00038661
South Ribble Council,http://statistics.data.gov.uk/doc/local-authority/30UN,Area 3 - Parks/Leyland East West,Grounds Maint Cntrctrs Chgs,4657,Carriage,02/06/2017,0000432289,70.72,Revenue,WICKSTEED LEISURE LTD,00038661
South Ribble Council,http://statistics.data.gov.uk/doc/local-authority/30UN,Regeneration,Capital Expenditure,C230,manufacture and supply of interpretation board to client`s design cost - 585,02/06/2017,0000432225,565.00,Revenue,WOODSTOCK SIGNS,00039039
South Ribble Council,http://statistics.data.gov.uk/doc/local-authority/30UN,Property Services,Rep & Maint Premises,2020,Attend the pavilions x 6 on Worden Park to check all the cistermisers and repair / replace the cracked ones in units 1 & 3,07/06/2017,0000432414,475.42,Revenue,Wright Build Limited,131203
South Ribble Council,http://statistics.data.gov.uk/doc/local-authority/30UN,Planning,Professional Fees,4510,South Ribble Retail Study - Appendices,14/06/2017,0000432405,"9,560.00",Revenue,WYG ENVIRONMENT TRANSPORT LIMITED,130177
